Cogmind - Beta 12 X4 @@@ ROGUE MODE // 2022.10.11 @ 05:23:32 Player: cptwinky Result: Fortifying 0b10! Performance ------------- Evolutions (9) 4500 Regions Visited (33) 6600 Robots Destroyed (669) 3345 Value Destroyed (32866) 32866 Prototype IDs (137) 2740 Alien Tech Used (10) 2000 Bonus (28814) 28814 TOTAL SCORE: 80865 Bonus ------- Triggered High Security 500 High Alert Combat Kills 9298 Follower Combat Kills 4873 Network Hubs Disabled 600 Met Data Miner 300 Met Imprinter 300 Was Imprinted 300 Met Zhirov 300 A7 Reached Mainframe 300 Met R17 at Cetus 500 Scanned by Researcher 500 Pursued by Intercept 500 Met MAIN.C 5000 Destroyed MAIN.C Shell 5000 Win 3000 Friendly Fire -2457 Cogmind --------- Core Integrity 280/1600 Matter 271/300 Energy 495/630 System Corruption 13% Temperature Cool (0) Movement Treading (143) Location By MAIN.C's Side Parts ------- > --- POWER (3) -------- Quantum Reactor Zero-point Reactor Zero-point Reactor > --- PROPULSION (6) --- Experimental Biometal Heavy Treads Experimental Biometal Heavy Treads High-density Centrium Heavy Treads > --- UTILITY (14) ----- Coolant Network Huge Storage Unit Advanced Melee Analysis Suite Femtoactuators Centrium Medium Armor Plating Centrium Medium Armor Plating Centrium Heavy Armor Plating 1C-UTU's Buckler Experimental Focal Shield Experimental Thermal Shield AEGIS Remote Shield > --- WEAPON (3) ------- Heavy Hardcell Cannon Molecular Scythe > --- INVENTORY (25) --- Experimental Energy Well (600) Zionite Biocell (600) Improved Matter Compressor (300) Improved Force Booster Experimental Focal Shield AEGIS Remote Shield Dimensional Node Initializer Microwarp Drive Sigix Broadsword Sigix Broadsword Peak State ------------ > --- POWER ------------ Quantum Reactor Zero-point Reactor Zero-point Reactor > --- PROPULSION ------- Advanced Heavy Siege Treads Advanced Heavy Siege Treads High-density Centrium Heavy Treads > --- UTILITY ---------- Coolant Network Huge Storage Unit Enhanced Optical Array Advanced Melee Analysis Suite Experimental Melee Analysis Suite Femtoactuators Experimental Cloaking Device Centrium Heavy Armor Plating Advanced Powered Armor Heavy Regenerative Plating AEGIS Remote Shield > --- WEAPON ----------- Molecular Scythe Sigix Broadsword > --- INVENTORY -------- Quantum Reactor Experimental Biometal Heavy Treads Experimental Biometal Heavy Treads Experimental Cooling System Experimental Energy Well Zionite Biocell Improved Matter Compressor Improved Force Booster 1C-UTU's Buckler Experimental Thermal Shield Dimensional Node Initializer Subatomic Replicator Spacefold Activator Microwarp Drive Compact HERF Cannon Improved Matter Neutralizer Improved Potential Cannon Point Singularity Launcher AD-0RF's Magmablaster Kinetic Spear CR-A16's Behemoth Slayer [Rating: 255] Favorites ----------- Power Cooled Deuterium Engine Engine Cooled Deuterium Engine Power Core Cooled Fission Core Reactor Heavy Antimatter Reactor Propulsion Light Treads Treads Light Treads Leg Aluminum Leg Wheel High-density Centrium Wheel Hover Unit Cooled Gravmag System Utility Advanced Targeting Computer Device Experimental Sensor Array Storage Huge Storage Unit Processor Advanced Targeting Computer Hackware Makeshift Hacking Suite Protection Powered Armor Artifact Phase Armor Weapon Advanced Assault Cannon Energy Gun Medium Laser Energy Cannon Long-range Proton Cannon Ballistic Gun Improved Assault Rifle Ballistic Cannon Advanced Assault Cannon Launcher Hellfire Missile Launcher Special Weapon AD-0RF's Magmablaster Impact Weapon Flail Slashing Weapon Sigix Broadsword Piercing Weapon CR-A16's Pointy Stick Special Melee Weapon Improved Datajack Build | -11 -10 -10 -9 -9 -8 -8 -7 -7 -7 -7 -6 -6 -6 -6 -6 -5 -5 -5 -5 -5 -4 -4 -4 -4 -4 -4 -3 -3 -2 -2 -2 -1 -1 ------- Run | Scr Mat Min Mat Min Mat Sto Fac Low Low Zio Pro Fac Low Low Dat Pro Fac Upp Upp Zhi Pro Fac Ext Cet Arc Hub Res Tes Res Qua Sec Acc Com Slots Evolved 18 | . . . 2 . 2 . 2 . . . . 2 . . . . 2 . . . . 2 . . . . 2 . 2 . . 2 . Power 2 | . . . . . . . . . . . . . . . . . 1 . . . . . . . . . . . 1 . . . . Propulsion 3 | . . . 1 . 1 . . . . . . . . . . . . . . . . . . . . . 1 . . . . . . Utility 12 | . . . 1 . 1 . 2 . . . . 2 . . . . 1 . . . . 2 . . . . 1 . 1 . . 1 . Weapon 1 | . . . . . . . . . . . . . . . . . . . . . . . . . . . . . . . . 1 . Parts Attached 963 | 2 17 1 33 8 22 21 69 8 20 6 12 65 30 17 2 9 65 31 36 10 30 25 28 9 1 23 80 40 65 50 31 47 50 Power 34 | . 1 . 2 1 . 1 3 . . 1 . 1 . . . . 6 2 . 2 . . 1 1 . . 3 2 1 1 1 1 3 Engine 13 | . 1 . 2 1 . 1 2 . . 1 . 1 . . . . 3 . . . . . . . . . 1 . . . . . . Core 9 | . . . . . . . 1 . . . . . . . . . 3 2 . 1 . . 1 . . . . 1 . . . . . Reactor 12 | . . . . . . . . . . . . . . . . . . . . 1 . . . 1 . . 2 1 1 1 1 1 3 Propulsion 86 | 2 5 . 7 1 7 5 11 . 1 . 2 2 2 . . . 1 3 . 1 2 4 3 3 . 1 10 . 4 . 2 4 3 Treads 71 | 2 5 . 7 1 7 5 5 . . . . . 2 . . . 1 3 . . 2 3 2 2 . 1 10 . 4 . 2 4 3 Leg . | . . . . . . . . . . . . . . . . . . . . . . . . . . . . . . . . . . Wheel 14 | . . . . . . . 6 . 1 . 2 2 . . . . . . . . . 1 1 1 . . . . . . . . . Hover 1 | . . . . . . . . . . . . . . . . . . . . 1 . . . . . . . . . . . . . Flight . | . . . . . . . . . . . . . . . . . . . . . . . . . . . . . . . . . . Utility 538 | . 4 1 9 . 9 4 34 6 9 3 8 46 21 16 . 5 32 19 25 3 16 14 11 3 1 10 48 23 54 34 22 23 25 Device 394 | . . . 1 . 2 1 18 3 5 2 7 30 19 14 . 4 25 17 21 2 14 11 10 2 1 7 39 20 45 31 15 16 12 Storage 13 | . 1 1 2 . . . . 1 . . . 2 . . . . 2 . 1 . . . . . . . . . 1 . . . 2 Processor 19 | . . . 2 . 2 . 2 . . . . . . . . . 1 1 1 . . 1 . . . . 4 1 1 . . 2 1 Hackware 4 | . . . . . . . 2 . . . . 1 . . . . . . . . . . . . . . . 1 . . . . . Protection 97 | . 3 . 4 . 5 3 12 2 4 1 1 13 2 2 . 1 4 1 2 1 2 2 1 1 . 3 5 1 7 2 2 1 9 Artifact 11 | . . . . . . . . . . . . . . . . . . . . . . . . . . . . . . 1 5 4 1 Weapon 305 | . 7 . 15 6 6 11 21 2 10 2 2 16 7 1 2 4 26 7 11 4 12 7 13 2 . 12 19 15 6 15 6 19 19 Energy Gun 2 | . 1 . . . . . . . . . . 1 . . . . . . . . . . . . . . . . . . . . . Energy Cannon 41 | . . . . . . . . . . . . . . . . . 2 . . . 2 . 3 2 . 3 7 7 3 4 1 3 4 Ballistic Gun 31 | . 3 . 1 . 1 6 11 . . . . . . . . . . . . . . 4 4 . . . 1 . . . . . . Ballistic Cannon 93 | . 2 . 8 4 2 . 2 1 6 1 1 8 3 1 1 2 12 3 6 . 5 . 2 . . 4 6 6 2 2 . . 3 Launcher 57 | . . . 5 2 3 1 6 1 4 . 1 6 2 . . . 7 2 2 2 1 . . . . 1 3 . . 3 1 3 1 Special Weapon 25 | . . . . . . . . . . . . . . . . . 4 . . . 1 1 . . . 3 . . . 1 . 12 3 Impact Weapon 4 | . . . . . . 2 2 . . . . . . . . . . . . . . . . . . . . . . . . . . Slashing Weapon 18 | . 1 . . . . . . . . . . . . . . . . . . . . . . . . . . . . 5 3 1 8 Piercing Weapon 20 | . . . . . . . . . . . . . 1 . . 1 1 2 3 1 2 2 1 . . . 2 2 1 . 1 . . Special Melee Weapon 14 | . . . 1 . . 2 . . . 1 . 1 1 . 1 1 . . . 1 1 . 3 . . 1 . . . . . . . Unidentified Prototypes 52 | . . . 3 . 2 . 3 . . 1 . 10 1 . . . 3 1 . 3 . . . 2 . . 1 2 . 3 6 2 9 Parts Lost 54 | . . . 2 . 1 2 5 . . . 1 3 1 . . . 11 2 1 . 2 . . . . 5 5 . . 1 1 2 9 Power 6 | . . . 1 . . . . . . . . 1 . . . . 3 1 . . . . . . . . . . . . . . . Propulsion 12 | . . . . . . 1 3 . . . 1 . 1 . . . 2 . 1 . . . . . . . 1 . . . . . 2 Utility 30 | . . . 1 . . . 2 . . . . 2 . . . . 5 1 . . 2 . . . . 5 3 . . 1 1 2 5 Weapon 6 | . . . . . 1 1 . . . . . . . . . . 1 . . . . . . . . . 1 . . . . . 2 Highest Loss Streak 11 | . . . 1 . 1 1 3 . . . 1 2 1 . . . 11 1 1 . 1 . . . . 3 4 . . 1 1 1 8 To Critical Strikes 1 | . . . . . . . . . . . 1 . . . . . . . . . . . . . . . . . . . . . . Average Slot Usage (%) 91 | . 95 100 98 100 99 99 99 98 92 92 91 92 87 92 93 93 92 81 90 89 93 95 95 86 85 82 81 77 76 78 77 75 74 Engine 5 | . 14 14 10 11 9 9 6 7 7 7 7 6 6 6 6 6 10 . . . . . . . . . . . . . . . . Core 1 | . . . . . . . . . . . . . . . . . . 10 11 9 5 5 5 . . . . 2 4 4 4 3 . Reactor 1 | . . . . . . . . . . . . . . . . . . . . 1 5 5 5 9 10 10 8 6 6 8 8 7 9 Treads 17 | . 27 28 32 33 35 36 22 7 7 7 7 6 12 13 13 13 10 2 15 11 13 15 15 14 15 15 15 13 11 12 12 10 10 Wheel 7 | . . . . . . . 7 23 23 23 22 20 13 13 13 13 11 11 11 11 11 10 10 1 . . . . . . . . . Device 9 | . . . . . . . 9 6 4 6 6 10 9 15 13 12 10 14 15 15 19 19 15 15 15 15 18 20 19 16 16 19 15 Storage 6 | . 14 14 11 11 9 9 7 7 7 7 7 6 6 6 6 6 5 5 5 5 5 5 5 5 5 5 4 4 4 4 4 3 3 Processor 17 | . . . 9 11 14 18 22 23 23 23 23 20 20 20 20 20 16 16 16 16 16 16 20 20 20 18 18 18 18 18 16 13 10 Protection 6 | . 9 14 11 11 12 8 5 5 2 . . 2 3 3 6 6 10 4 3 5 1 9 9 10 10 7 5 3 4 5 5 7 11 Ballistic Gun 3 | . 20 . . . 5 16 12 7 5 . . . . . . . . . . . . 5 7 . . . 1 . . . . . . Ballistic Cannon 8 | . 4 28 21 21 12 . 1 6 5 14 14 12 8 6 9 12 9 10 7 5 9 4 2 . . 1 4 2 3 2 . . . Naked Turns . | . . . . . . . . . . . . . . . . . . . . . . . . . . . . . . . . . . Heaviest Build 324 | 12 38 98 103 105 112 104 122 231 231 232 233 248 250 250 243 243 263 261 324 164 164 187 176 168 178 182 160 171 191 219 248 274 248 Greatest Support 260 | 40 46 46 69 60 80 80 83 34 34 34 36 52 52 40 40 40 40 40 40 40 49 40 84 188 188 188 230 210 225 210 235 245 260 Greatest Overweight (x) 59 | . . 2 1 1 1 1 6 6 6 6 10 6 6 6 6 6 6 6 8 4 4 5 5 5 59 . 1 . . 1 1 1 . Average Overweight (x) 3 | . . 1 1 1 1 1 1 3 6 6 6 5 5 5 5 5 5 5 4 3 3 4 4 . 26 . . . . . . . . Largest Inventory Capacity 35 | 8 15 25 25 25 25 25 25 35 35 35 35 35 35 35 35 35 35 35 35 25 25 25 25 25 25 25 25 25 25 25 25 25 25 Average Capacity 28 | 8 13 24 25 25 25 25 25 27 35 35 35 35 35 35 35 35 35 35 31 25 25 25 25 25 25 25 25 25 25 25 25 25 25 Most Carried 35 | 6 15 19 25 25 25 25 25 35 35 35 35 35 35 35 31 34 35 35 35 25 25 25 25 25 25 25 25 25 25 25 25 25 25 Average Carried 27 | 6 12 18 24 24 23 24 24 27 34 34 34 33 34 32 31 32 34 34 31 24 23 24 24 24 25 24 23 24 24 23 21 23 22 Final Capacity 35 | 8 15 25 25 25 25 25 25 35 35 35 35 35 35 35 35 35 35 35 25 25 25 25 25 25 25 25 25 25 25 25 25 25 25 Final Carried 35 | 6 15 19 25 25 24 25 25 35 35 35 35 34 33 31 31 34 31 35 25 25 25 25 25 25 25 23 25 24 24 20 25 23 13 Class Distribution -------------------- 33% | Hauler-Mutant 24% | Mutant 23% | Scavenger-Mutant 3% | Trapper-Mutant 3% | Scavenger-Skirmisher 3% | Scavenger-Gladiator Dominant Class ---------------- Mutant | -10/Materials Mutant | -10/Mines Mutant | -9/Materials Mutant | -9/Mines Scavenger-Mutant | -8/Materials Scavenger-Mutant | -8/Storage Scavenger-Mutant | -7/Factory Mutant | -7/Lower Caves Hauler-Mutant | -7/Lower Caves Hauler-Mutant | -7/Zion Hauler-Mutant | -6/Proximity Caves Hauler-Mutant | -6/Factory Hauler-Mutant | -6/Lower Caves Hauler-Mutant | -6/Lower Caves Hauler-Mutant | -6/Data Miner Hauler-Mutant | -5/Proximity Caves Hauler-Mutant | -5/Factory Hauler-Mutant | -5/Upper Caves Trapper-Mutant | -5/Upper Caves Scavenger-Mutant | -5/Zhirov Derelict-Mutant | -4/Proximity Caves Scavenger-Mutant | -4/Factory Scavenger-Mutant | -4/Extension Scavenger-Mutant | -4/Cetus Scavenger-Mutant | -4/Archives Scavenger-Mutant | -4/Hub_04(d) Scavenger-Mutant | -3/Research Skirmisher | -3/Testing Skirmisher | -2/Research Scavenger-Skirmisher | -2/Quarantine Mutant | -2/Section 7 Scavenger-Gladiator | -1/Access Scavenger-Gladiator | -1/Command Resources | -11 -10 -10 -9 -9 -8 -8 -7 -7 -7 -7 -6 -6 -6 -6 -6 -5 -5 -5 -5 -5 -4 -4 -4 -4 -4 -4 -3 -3 -2 -2 -2 -1 -1 ----------- Run | Scr Mat Min Mat Min Mat Sto Fac Low Low Zio Pro Fac Low Low Dat Pro Fac Upp Upp Zhi Pro Fac Ext Cet Arc Hub Res Tes Res Qua Sec Acc Com Matter Collected 26451 | 206 477 34 967 223 865 872 1498 295 524 50 487 1645 2549 1201 . 124 1895 782 474 110 585 712 816 120 10 477 1975 1010 1609 1323 867 863 806 Remotely 3817 | . . . . . 213 . . . . . . 396 118 332 . . 497 . 74 . . . . . . . 201 218 1293 475 . . . Salvage Created 26984 | . 773 80 1662 298 954 1673 2469 60 374 . 145 1350 629 85 . . 781 586 412 130 585 803 911 259 86 267 1791 855 1827 1319 839 3368 1613 Parts 1214 | . 36 5 121 16 56 83 132 2 15 . 5 65 28 1 . . 41 17 16 3 20 35 41 8 3 19 94 44 64 59 53 95 37 Haulers Intercepted 27 | . 2 . 6 . 3 6 6 . . . . 1 . . . . 1 . . . 1 . . . . . . . . . . 1 . Recyclers Shooed 35 | . 3 . 3 . 5 4 3 . . . . 5 . . . . 1 . . . . 1 . . . . 1 1 4 . . 3 1 Parts Field Recycled . | . . . . . . . . . . . . . . . . . . . . . . . . . . . . . . . . . . Retrieved Matter . | . . . . . . . . . . . . . . . . . . . . . . . . . . . . . . . . . . Parts Self-Destructed 83 | . . . . . . . . 2 15 . 6 . 21 . . 6 . 13 10 2 8 . . . . . . . . . . . . Prevented 18 | . . . . . . . . . . . 2 . 3 . . . . . . . 13 . . . . . . . . . . . . Kills | -11 -10 -10 -9 -9 -8 -8 -7 -7 -7 -7 -6 -6 -6 -6 -6 -5 -5 -5 -5 -5 -4 -4 -4 -4 -4 -4 -3 -3 -2 -2 -2 -1 -1 ------- Run | Scr Mat Min Mat Min Mat Sto Fac Low Low Zio Pro Fac Low Low Dat Pro Fac Upp Upp Zhi Pro Fac Ext Cet Arc Hub Res Tes Res Qua Sec Acc Com Combat Hostiles Destroyed 488 | . 13 2 47 9 24 27 35 1 13 . 4 26 11 1 . . 26 6 11 . 9 7 8 2 1 11 30 9 30 37 14 55 19 Melee 29 | . . . . . . . . . . . . . . . . . . . . . . . . . . . . . . 8 8 9 4 Guns 76 | . 10 . . . 2 24 22 1 3 . . . . . . . . . . . . 5 7 . . . 2 . . . . . . Cannons 196 | . 3 2 27 5 16 . 4 . 3 . 3 13 8 1 . . 8 2 2 . 3 2 1 1 . 3 20 7 28 18 . 11 5 AOE 138 | . . . 20 4 6 3 9 . 7 . 1 13 3 . . . 18 4 8 . 2 . . . . 6 5 . . 9 5 11 4 Classes Destroyed 29 | . 5 . 5 . 2 1 4 1 . . . 3 1 1 . . 1 . 2 . . . . . . . . . . . 1 1 1 Worker 32 | . 1 . 2 . 2 . 9 . . . . 5 . . . . 2 . . . . . . . . 4 1 2 2 . . 2 . Builder 27 | . . . 4 . . 1 4 . . . . 5 . . . . . . . . . . 1 . . . 2 . . . 1 9 . Tunneler 3 | . . . . . . . 2 . . . . . . . . . . . . . . 1 . . . . . . . . . . . Hauler 27 | . 2 . 6 . 3 6 6 . . . . 1 . . . . 1 . . . 1 . . . . . . . . . . 1 . Recycler 37 | . 2 . 4 1 2 2 8 . . . . 4 . . . . . . . . . 1 2 . . . 3 2 2 . . 3 1 Minesweeper 12 | . . . . . . . . 1 1 . . . 4 . . . . 5 . . 1 . . . . . . . . . . . . Mechanic 11 | . . . . . . . . . . . . 1 . . . . 3 . . . . 1 . . . . 2 . . 2 . 2 . Operator 9 | . . . . . 1 1 1 . . . . 1 . . . . 1 . . . . . . . . 1 . 2 1 . . . . Watcher 22 | . 1 . 4 . 4 2 2 . . . . . . . . . . . . . . . . . . . 1 1 2 3 . 2 . Swarmer 79 | . . . 12 4 7 4 4 . 3 . 1 4 3 . . . 10 4 4 . . . . . . . . . . 9 5 . 5 Saboteur 2 | . . . . . . . . . . . . . . . . . . . . . . . . . . . . . . . . 2 . Grunt 176 | . 13 2 20 4 11 14 13 1 8 . 2 7 4 . . . 5 2 1 . 7 3 4 1 . 1 6 . 10 14 . 23 . Brawler 14 | . . . 4 1 1 1 . . 1 . . 1 1 . . . . . . . . 1 . . . . . . . 2 . 1 . Duelist 7 | . . . . . 1 1 . . 1 . . . . . . . 2 . . . . . . . . . 1 . . . . 1 . Protector 5 | . . . 1 . . . . . . . . 1 . . . . . . . . . . . . . 2 . . . 1 . . . Researcher 2 | . . . . . . . . . . . . . . . . . . . . . . . . . . . . . . . 2 . . Sentry 50 | . . . 10 . 4 6 4 . . . 1 1 1 . . . 1 . . . . 2 4 . 1 2 2 . 4 4 . 3 . Demolisher 2 | . . . . . . . 2 . . . . . . . . . . . . . . . . . . . . . . . . . . Specialist 6 | . . . . . . . . . . . . 1 . . . . 3 . . . . . . . . . 2 . . . . . . Hunter 44 | . . . . . . 1 1 . . . . 6 . . . . 2 . 1 . 2 . . . . . 4 3 4 2 2 12 4 Programmer 68 | . . . . . . . 8 . . . . 5 1 . . . 2 . . . . 1 . . . . 12 6 11 5 5 9 3 Heavy 4 | . . . . . . . . . . . . . . . . . 1 . . . . . . . . . 2 . . . . 1 . Behemoth 4 | . . . . . . . . . . . . . . . . . . . 1 . . . . . . . 1 . 1 . 1 . . Cetus Guard 1 | . . . . . . . . . . . . . . . . . . . . . . . . 1 . . . . . . . . . S7 Guard 1 | . . . . . . . . . . . . . . . . . . . . . . . . . . . . . . . 1 . . Enhanced Q-Series 8 | . . . . . . . . . . . . . . . . . . . . . . . . . . . . . . . . . 8 Lightning 6 | . . . . . . . . . . . . . . . . . . . . . . . . . . 6 . . . . . . . Tracker 1 | . . . . . . . . . . . . . . . . . . . . . . . . . . . . . . . . 1 . Combat Programmer 2 | . . . . . . . . . . . . . . . . . . . . . . . . . . . . . . . . 2 . Z-Courier 2 | . . . . . . . . . . . . . . . . . . . . . . 1 . . . . 1 . . . . . . Z-Light 1 | . . . . . . . . . . . . 1 . . . . . . . . . . . . . . . . . . . . . Decomposer 1 | . . . . . . . . . . . . . 1 . . . . . . . . . . . . . . . . . . . . Packrat 2 | . . . . . . . . . . . . . . . . . . 1 . . 1 . . . . . . . . . . . . Samaritan 4 | . . . . . . . . . . . . . 3 . . . . . 1 . . . . . . . . . . . . . . Assembled 3 | . . . . . . . 3 . . . . . . . . . . . . . . . . . . . . . . . . . . Thug 2 | . . . . . . . . . . . . . . . . . . . 1 . . . . 1 . . . . . . . . . Savage 1 | . . . . . . . . . . . . . 1 . . . . . . . . . . . . . . . . . . . . Butcher 1 | . . . . . . . . . . . . . 1 . . . . . . . . . . . . . . . . . . . . Fireman 3 | . . . . . . . . . . . . . . . . . . . 3 . . . . . . . . . . . . . . Mutant 1 | . . . . . . . . . . . . . . 1 . . . . . . . . . . . . . . . . . . . Best Kill Streak 11 | . 3 2 10 4 5 5 7 2 4 . 3 9 3 1 . . 9 4 4 . 3 5 2 1 1 8 7 3 10 8 6 11 6 Combat Bots Only 9 | . 2 2 8 4 4 4 4 1 4 . 3 5 3 1 . . 7 4 4 . 3 3 2 1 1 8 5 3 7 7 5 9 6 Max Kills in Single Turn 5 | . 1 1 5 3 2 4 3 1 2 . 1 4 3 1 . . 4 4 4 . 1 2 1 1 1 3 2 2 2 3 5 4 3 Gunslinging 1 | . . . . . . . . . . . . . . . . . . . . . . 1 . . . . . . . . . . . Exploded 5 | . . . 4 3 2 3 3 . 2 . 1 4 3 . . . 4 4 4 . 1 . . . . 2 1 . . 3 5 2 3 Melee 1 | . . . . . . . . . . . . . . . . . . . . . . . . . . . . . . 1 1 1 1 Uniques/NPCs Destroyed 1 | . . . . . . . . . . . . . . . . . . . . . . . . . . . . . . . . . 1 MAIN.C Shell (-1/Command) Combat | -11 -10 -10 -9 -9 -8 -8 -7 -7 -7 -7 -6 -6 -6 -6 -6 -5 -5 -5 -5 -5 -4 -4 -4 -4 -4 -4 -3 -3 -2 -2 -2 -1 -1 -------- Run | Scr Mat Min Mat Min Mat Sto Fac Low Low Zio Pro Fac Low Low Dat Pro Fac Upp Upp Zhi Pro Fac Ext Cet Arc Hub Res Tes Res Qua Sec Acc Com Damage Taken 34871 | . 522 . 681 162 920 1073 1581 . 487 . 107 1070 269 106 . 40 3116 489 159 . 867 181 637 50 37 3460 3455 293 1615 2310 937 3787 6460 Core 3387 | . 113 . 29 44 34 82 146 . . . 13 80 1 . . . 300 . 12 . 85 11 62 . . 193 138 . 62 346 316 540 780 Absorbed by Shields 9994 | . . . . . . . 412 . . . . 297 96 32 . 16 496 97 76 . 53 191 347 49 39 393 528 109 596 1238 604 2510 1815 Reduced by Siege Mode 466 | . . . . . . . . . . . . . . . . . . . . . . . . . . . 287 41 84 54 . . . Redirected to Core 260 | . . . . . . . . . . . . . . . . . . . . . . . . . . . . . . 260 . . . Redirected to Shielding 192 | . . . . . . . . . . . . . . . . . . . . . 155 . . . . . . . . . . . 37 Regen/Repaired (Parts) 5738 | . 148 . 152 . 231 111 81 . . . . . . . . . 263 . . . . . . . . . 26 593 . 180 1956 1188 809 Core Remaining (%) 69 | 100 . 54 . 81 . 78 . . . . 77 . . . . 90 . . . . 60 . . . . 76 . 89 . . 45 . 17 Volleys Fired 1427 | . 54 3 83 11 90 105 122 19 29 . 9 67 30 21 . 2 69 20 11 . 36 37 38 8 4 34 110 40 125 82 5 96 67 Largest 2 | . 2 2 2 2 2 2 2 2 2 . 2 2 2 2 . 2 2 2 2 . 2 2 2 2 2 2 2 2 2 2 1 2 2 Hottest 420 | . 78 78 78 74 78 62 73 73 73 . 96 128 96 96 . 96 114 114 117 . 138 114 113 162 162 220 178 188 188 220 113 305 420 Shots Fired 2199 | . 108 6 162 20 164 207 229 28 44 . 16 120 56 26 . 4 112 38 15 . 47 66 75 15 8 33 162 47 129 90 5 99 68 Gun 676 | . 94 . . . 53 186 189 9 18 . . 1 . . . . . . . . . 46 67 . . . 13 . . . . . . Cannon 1311 | . 14 6 152 18 105 20 32 19 19 . 14 107 55 26 . 4 95 37 12 . 42 18 8 15 8 17 136 47 129 83 2 17 54 Launcher 101 | . . . 10 2 6 1 8 . 7 . 2 12 1 . . . 10 1 3 . 2 . . . . 8 13 . . 5 3 6 1 Special 111 | . . . . . . . . . . . . . . . . . 7 . . . 3 2 . . . 8 . . . 2 . 76 13 Kinetic 1748 | . 94 6 152 18 158 206 221 28 37 . 14 107 55 26 . 4 93 37 12 . 25 64 74 . . 4 110 14 119 64 . . 6 Thermal 258 | . 14 . . . . . . . . . . 1 . . . . 9 . . . 3 2 1 1 . 17 31 20 2 5 2 89 61 Explosive 101 | . . . 10 2 6 1 8 . 7 . 2 12 1 . . . 10 1 3 . 2 . . . . 8 13 . . 5 3 6 1 Electromagnetic 88 | . . . . . . . . . . . . . . . . . . . . . 17 . . 14 8 4 8 13 8 16 . . . Robot Hit Streak 62 | . 13 2 16 4 17 23 15 7 17 . 6 13 9 5 . 4 13 5 5 . 21 16 21 6 14 26 44 62 39 55 10 39 16 Robot Miss Streak 7 | . 3 1 4 3 4 4 2 2 1 . 1 4 2 3 . 1 2 2 1 . 4 2 7 3 . 2 3 2 3 3 . 5 2 Penetration Max 3 | . . . . . . . . . . . . . . . . . . . . . . 3 1 . . . 1 . . . . . . Secondary Targets 5 | . . . . . . 4 . . . . . . . . . . . . . . . 1 . . . . . . . . . . . Max Gunslinging Chain 1 | . . . . . . 1 . . . . . . . . . . . . . . . 1 . . . . . . . . . . . Shots Hit Robots 1695 | . 70 3 101 11 112 166 161 12 30 1 10 79 50 9 1 6 81 30 9 6 37 52 61 9 8 18 125 31 102 90 20 110 84 Core Hits 1150 | . 32 4 77 9 61 72 101 4 28 . 5 84 23 3 . 1 49 17 15 . 17 32 24 5 2 50 70 24 87 72 16 127 39 Critical Kills 20 | . 1 . . . . 1 1 . . . . . . . . . . . . . . 7 8 . . . . . . . . . 2 Critical Parts Destroyed 19 | . . . . . . 2 2 . . . . . . . . . . . . . . 10 5 . . . . . . . . . . Critical Strikes 107 | . 3 1 4 . 5 4 4 2 . . 1 4 4 2 . . 2 4 . . 3 17 16 . 1 . 12 4 6 2 . 1 5 Burn 2 | . 1 . . . . . . . . . . . . . . . . . . . 1 . . . . . . . . . . . . Meltdown 2 | . . . . . . . . . . . . . . . . . . . . . . . . . . . . . . . . . 2 Destroy 40 | . 1 . . . . 3 3 . . . . . . . . . . . . . . 17 16 . . . . . . . . . . Blast 55 | . 1 1 4 . 5 1 1 2 . . 1 4 3 2 . . 2 4 . . 1 . . . . . 12 3 6 2 . . . Corrupt 1 | . . . . . . . . . . . . . . . . . . . . . . . . . 1 . . . . . . . . Sever 4 | . . . . . . . . . . . . . . . . . . . . . . . . . . . . . . . . 1 3 Impale 3 | . . . . . . . . . . . . . 1 . . . . . . . 1 . . . . . . 1 . . . . . Melee Attacks 250 | . 2 . . . . 15 4 . . 1 . . 17 . 1 4 2 11 3 6 3 4 12 . . 2 4 4 1 23 33 56 42 Impact 19 | . . . . . . 15 4 . . . . . . . . . . . . . . . . . . . . . . . . . . Slashing 155 | . 2 . . . . . . . . . . . . . . . . . . . . . . . . . . . . 23 32 56 42 Piercing 55 | . . . . . . . . . . . . . 15 . . 3 2 11 3 3 3 4 1 . . . 4 4 1 . 1 . . Sneak Attacks 63 | . . . . . . . 1 . . 1 . . 14 . 1 1 1 3 2 3 3 2 11 . . 2 3 2 . . 4 8 1 Combat Hostiles 6 | . . . . . . . . . . . . . 2 . . . . . . . . . . . . 2 . . . . 2 . . Follow-up Attacks 8 | . . . . . . . . . . . . . . . . . . . . . . . . . . . . . . . . . 8 Damage Inflicted 96912 | . 859 90 4266 664 2810 3074 4428 261 1437 . 376 5232 2254 294 . 180 5242 1940 1062 145 1616 984 615 340 235 3497 7870 1864 6676 8383 3054 11586 15578 Guns 7848 | . 694 . . . 593 2410 2399 124 301 . . 37 . . . . . . . . . 478 438 . . . 374 . . . . . . Cannons 38039 | . 143 86 2222 256 1548 311 503 137 269 . 271 2147 1235 294 . 112 2222 776 157 . 953 378 177 340 235 58 4605 1472 6668 4397 . 579 5488 Explosions 34461 | . . . 1950 329 653 266 1277 . 867 . 105 3048 191 . . . 2875 442 743 . 468 . . . . 3064 2614 117 . 2720 1162 4972 6598 Melee 11510 | . . . . . . 48 132 . . . . . 828 . . 68 70 722 162 145 161 105 . . . . 208 178 . 1151 1892 2690 2950 Ramming 688 | . 22 4 94 79 16 39 117 . . . . . . . . . . . . . . . . . . 34 69 97 8 35 . 74 . Kinetic 36539 | . 681 86 2222 256 2141 2721 2902 261 570 . 271 2147 1235 294 . 112 2222 776 157 . 586 856 615 . . . 4045 741 6450 3821 . . 371 Thermal 19146 | . 156 . . . . . . . . . . 37 . . . . 75 . . . 34 23 . . . 341 681 316 . 80 . 5828 11575 Explosive 25905 | . . . 1950 329 653 266 1277 . 867 . 105 3048 191 . . . 2875 442 743 . 468 . . . . 2519 2614 . . 2720 1162 2994 682 Electromagnetic 3124 | . . . . . . . . . . . . . . . . . . . . . 367 . . 340 235 603 253 532 218 576 . . . Impact 180 | . . . . . . 48 132 . . . . . . . . . . . . . . . . . . . . . . . . . . Slashing 8683 | . . . . . . . . . . . . . . . . . . . . . . . . . . . . . . 1151 1892 2690 2950 Piercing 2647 | . . . . . . . . . . . . . 828 . . 68 70 722 162 145 161 105 . . . . 208 178 . . . . . Highest Corruption 30 | . . . . . . . 2 . . . . 1 1 . . . 3 3 . . . . 1 . . 30 4 6 6 8 8 4 13 Average Corruption 4 | . . . . . . . 1 . . . . 1 1 . . . 2 2 . . . . 1 . . 20 1 4 4 6 7 2 5 Corruption Purged 28 | . . . . . . . 4 . . . . 1 1 . . . . 3 . . . . 1 . . . 7 . 6 1 . . 4 Corruption Blocked . | . . . . . . . . . . . . . . . . . . . . . . . . . . . . . . . . . . Effects 160 | . . . . . . . 3 . . . . 1 3 . . . 3 1 . . . . 3 . . 10 11 30 13 16 29 22 15 Message Errors 39 | . . . . . . . . . . . . . 1 . . . 2 . . . . . . . . 2 3 9 5 2 7 5 3 Matter Fused 29 | . . . . . . . . . . . . . . . . . 1 . . . . . 2 . . 2 1 4 1 5 7 2 4 Heat Flow Errors 20 | . . . . . . . 1 . . . . . 1 . . . . . . . . . . . . 1 2 6 . . 2 5 2 Energy Discharges 21 | . . . . . . . 1 . . . . . 1 . . . . . . . . . . . . . . 4 1 4 6 4 . Parts Rejected 1 | . . . . . . . . . . . . . . . . . . . . . . . . . . . . . . . 1 . . Data Loss (minor) 27 | . . . . . . . 1 . . . . . . . . . . 1 . . . . 1 . . . 3 6 2 5 3 3 2 Data Loss (major) 7 | . . . . . . . . . . . . . . . . . . . . . . . . . . 1 . . 2 . 2 1 1 Misfires 2 | . . . . . . . . . . . . . . . . . . . . . . . . . . . . . 1 . . 1 . Alerts 5 | . . . . . . . . . . . . 1 . . . . . . . . . . . . . . . . . . 1 1 2 Misdirections 2 | . . . . . . . . . . . . . . . . . . . . . . . . . . 1 . . . . . . 1 Weapon Failures 7 | . . . . . . . . . . . . . . . . . . . . . . . . . . 3 2 1 1 . . . . Overload Shots . | . . . . . . . . . . . . . . . . . . . . . . . . . . . . . . . . . . Overflow Damage 5758 | . . . 91 24 33 16 213 . 17 . 9 116 288 9 . . 232 332 20 70 144 27 . . . 33 406 183 114 312 525 1103 1441 Projectiles 1498 | . . . 27 . 6 6 4 . 11 . 9 59 2 9 . . 36 76 . . 7 27 . . . . 257 89 114 16 . 19 724 Explosions 2031 | . . . 62 16 27 10 99 . 6 . . 57 18 . . . 146 . . . . . . . . 31 90 . . 234 166 683 386 Melee 2229 | . . . 2 8 . . 110 . . . . . 268 . . . 50 256 20 70 137 . . . . 2 59 94 . 62 359 401 331 Knockbacks 203 | . 1 3 5 3 8 1 2 . 2 . 3 11 4 1 . 3 16 3 . . 8 4 . . . 1 24 7 64 27 . . 2 Impact 6 | . . 1 . . . 1 1 . . . . . . . . . . . . . . . . . . 1 . . 1 1 . . . Kinetic 184 | . 1 2 5 3 8 . 1 . 2 . 3 11 4 1 . 2 15 3 . . 8 4 . . . . 22 7 56 24 . . 2 Secondary 13 | . . . . . . . . . . . . . . . . 1 1 . . . . . . . . . 2 . 7 2 . . . Self-Inflicted Damage 1204 | . . . 102 32 . . 51 . 51 . 18 . . . . . 235 73 . . . . . . . 360 90 . . . . 104 88 Shots 21 | . . . 3 1 . . 2 . 1 . 1 . . . . . 3 1 . . . . . . . 4 2 . . . . 2 1 Rammed 58 | . 9 1 14 6 3 4 8 . . . . . . . . . . . . . . . . . . 3 2 5 1 1 . 1 . Targets Rammed 70 | . 10 1 17 6 3 6 12 . . . . . . . . . . . . . . . . . . 3 2 6 1 1 . 2 . Kicked . | . . . . . . . . . . . . . . . . . . . . . . . . . . . . . . . . . . Crushed 12 | . 1 . 3 . . 2 4 . . . . . . . . . . . . . . . . . . . . 1 . . . 1 . Highest Temperature 566 | . 188 74 126 95 229 17 185 40 70 . 60 101 154 75 . 35 332 192 102 . 246 279 221 310 175 188 198 456 198 89 258 566 263 Average Temperature 68 | . 63 36 34 35 46 7 32 21 22 . 28 28 37 39 . 20 85 58 27 . 95 98 74 100 69 65 86 74 59 31 100 116 70 Received Heat Transfer 4733 | . 333 . 183 36 468 576 289 . 126 . . 98 72 . . 17 664 48 15 . 157 34 148 4 4 12 90 . 187 269 . 300 603 Effects 18 | . . . . . . . . . . . . . . . . . 4 . . . 1 . . 2 . . . 4 . . 1 6 . Shutdowns 2 | . . . . . . . . . . . . . . . . . . . . . . . . . . . . 1 . . . 1 . Energy Bleed 3 | . . . . . . . . . . . . . . . . . 1 . . . 1 . . . . . . . . . 1 . . Interference 10 | . . . . . . . . . . . . . . . . . 3 . . . . . . 2 . . . 2 . . . 3 . Matter Decay 1 | . . . . . . . . . . . . . . . . . . . . . . . . . . . . 1 . . . . . Damage (major) 1 | . . . . . . . . . . . . . . . . . . . . . . . . . . . . . . . . 1 . Damage (core) 1 | . . . . . . . . . . . . . . . . . . . . . . . . . . . . . . . . 1 . Siege Activations 25 | . . . . . . . . . . . . . . . . . . . . . . . . . . . 10 4 7 4 . . . Total Turns 616 | . . . . . . . . . . . . . . . . . . . . . . . . . . . 308 81 154 73 . . . Longest Duration 110 | . . . . . . . . . . . . . . . . . . . . . . . . . . . 110 28 33 26 . . . Robots Corrupted 13 | . . . . . . . . . . . . . . . . . . . . . 4 . . 1 1 . 2 2 1 2 . . . Combat Hostiles 13 | . . . . . . . . . . . . . . . . . . . . . 4 . . 1 1 . 2 2 1 2 . . . Parts Fried 21 | . . . . . . . 1 . . . . . . . . . . . . . 2 . . 2 1 . 3 3 1 4 . 1 3 Impact Corruptions 8 | . . . 1 2 . . 2 . . . . . . . . . . . . . . . . . . 1 1 . . . . 1 . Robots Melted 36 | . . . . . . . . . . . . . . . . . . . . . 1 . . . . 2 . . . 1 . 26 6 Combat Hostiles 32 | . . . . . . . . . . . . . . . . . . . . . . . . . . 2 . . . . . 24 6 Parts Melted 97 | . 3 . . . . . . . . . . . . . . . . . 6 . . . . 2 . 3 1 . . . 1 66 15 Heat Transferred 35716 | . 518 . . . . . . . . . . 37 . . . . 560 . . . 400 160 . . . 1923 592 285 . 480 . 20711 10050 Parts Sabotaged . | . . . . . . . . . . . . . . . . . . . . . . . . . . . . . . . . . . Parts Stolen . | . . . . . . . . . . . . . . . . . . . . . . . . . . . . . . . . . . Parts Stripped . | . . . . . . . . . . . . . . . . . . . . . . . . . . . . . . . . . . Power Chain Reactions 3 | . . . . . . . . . . . . . . . . . . . . . . . . . . 2 . 1 . . . . . Missiles Intercepted . | . . . . . . . . . . . . . . . . . . . . . . . . . . . . . . . . . . Alert | -11 -10 -10 -9 -9 -8 -8 -7 -7 -7 -7 -6 -6 -6 -6 -6 -5 -5 -5 -5 -5 -4 -4 -4 -4 -4 -4 -3 -3 -2 -2 -2 -1 -1 ------- Run | Scr Mat Min Mat Min Mat Sto Fac Low Low Zio Pro Fac Low Low Dat Pro Fac Upp Upp Zhi Pro Fac Ext Cet Arc Hub Res Tes Res Qua Sec Acc Com Peak Influence 2495 | . 296 80 956 557 356 559 953 . . . . 617 . . . . 1703 . . . . 357 576 736 400 1041 854 551 775 1480 1129 2495 1853 Initial 1558 | . . 45 . 372 58 130 254 . . . . . . . . . . . . . . 152 112 259 294 . 546 375 150 435 832 626 1558 Average 459 | . 122 24 476 352 201 327 339 . . . . 174 . . . . 754 . . . . 205 182 523 177 377 575 391 437 1027 984 1437 764 Maximum Alert Level 5 | . 1 . 3 2 1 2 3 . . . . 2 . . . . 5 . . . . 1 2 3 2 3 3 2 3 4 4 5 5 Low Security (%) 31 | 100 88 100 8 3 54 12 38 . . . . 76 . . . . 16 . . . . 36 81 . 44 61 . . 16 . . . 74 Level 1 26 | . 11 . 31 72 45 55 25 . . . . 7 . . . . 20 . . . . 63 8 40 30 . 22 50 21 . . . . Level 2 23 | . . . 46 24 . 31 26 . . . . 15 . . . . 18 . . . . . 9 29 24 6 56 49 59 14 . 16 . Level 3 10 | . . . 12 . . . 9 . . . . . . . . . 17 . . . . . . 30 . 31 21 . 2 40 98 10 . Level 4 5 | . . . . . . . . . . . . . . . . . 21 . . . . . . . . . . . . 45 1 36 5 Level 5 2 | . . . . . . . . . . . . . . . . . 1 . . . . . . . . . . . . . . 36 20 High Security . | . . . . . . . . . . . . . . . . . 4 . . . . . . . . . . . . . . . . Max Security . | . . . . . . . . . . . . . . . . . . . . . . . . . . . . . . . . . . Squads Dispatched 132 | . 3 1 7 . 1 8 13 . . . . 5 . . . . 21 . . . . 1 . . . 2 14 5 7 11 8 23 2 Investigation 23 | . 1 . 4 . . 2 4 . . . . . . . . . 3 . . . . . . . . 1 . 2 2 2 1 1 . Extermination 32 | . . . . . . . 6 . . . . 4 . . . . 4 . . . . 1 . . . . 4 2 4 2 2 3 . Reinforcement 31 | . 2 . 2 . 1 3 2 . . . . 1 . . . . 4 . . . . . . . . 1 2 . 1 2 4 6 . Assault 39 | . . 1 1 . . 3 1 . . . . . . . . . 10 . . . . . . . . . 5 1 . 5 1 9 2 Garrison 4 | . . . . . . . . . . . . . . . . . . . . . . . . . . . 3 . . . . 1 . Intercept 3 | . . . . . . . . . . . . . . . . . . . . . . . . . . . . . . . . 3 . Searches Triggered . | . . . . . . . . . . . . . . . . . . . . . . . . . . . . . . . . . . Data Miner Redirects 26 | . . . . . . . . . . . . . . . . . 5 . . . . . . . . . 3 1 . 7 2 7 1 Construction Impeded 4 | . . . . . . . . . . . . 1 . . . . . . . . . . . . . 1 . . . . . 2 . Haulers Reinforced 3 | . . . . . . . 1 . . . . . . . . . . . . . . . . . . . . . . . . 2 . Active Scanning Responses . | . . . . . . . . . . . . . . . . . . . . . . . . . . . . . . . . . . Cargo Convoy Interrupts 2 | . . . . . . . . . . . . 1 . . . . 1 . . . . . . . . . . . . . . . . Stealth | -11 -10 -10 -9 -9 -8 -8 -7 -7 -7 -7 -6 -6 -6 -6 -6 -5 -5 -5 -5 -5 -4 -4 -4 -4 -4 -4 -3 -3 -2 -2 -2 -1 -1 --------- Run | Scr Mat Min Mat Min Mat Sto Fac Low Low Zio Pro Fac Low Low Dat Pro Fac Upp Upp Zhi Pro Fac Ext Cet Arc Hub Res Tes Res Qua Sec Acc Com Distress Signals 40 | . 1 . 4 . 1 3 2 . . . . 1 . . . . 1 . . . . . 1 3 . 3 1 1 2 1 2 5 8 Communications Jammed 123 | . . . . . . . . . . . . . . . . . 10 . . . . . . 14 . . 34 8 52 5 . . . Distress Signals 97 | . . . . . . . . . . . . . . . . . 2 . . . . . . 14 . . 16 8 52 5 . . . Times Spotted 779 | . 19 2 54 9 34 55 52 1 13 1 6 40 9 1 . 5 50 8 8 . 26 9 24 15 3 16 39 16 37 55 15 95 62 Peak Tracking Total 12 | . 3 2 7 4 4 9 4 1 3 1 3 11 3 1 . 3 6 4 4 . 5 5 4 5 2 9 4 5 4 6 7 12 9 Tactical Retreats 34 | . 1 . 2 . 3 2 1 . 1 . . . 1 . . . 1 . 1 . 6 . . . . 2 1 . 1 2 2 7 . Traps | -11 -10 -10 -9 -9 -8 -8 -7 -7 -7 -7 -6 -6 -6 -6 -6 -5 -5 -5 -5 -5 -4 -4 -4 -4 -4 -4 -3 -3 -2 -2 -2 -1 -1 ------- Run | Scr Mat Min Mat Min Mat Sto Fac Low Low Zio Pro Fac Low Low Dat Pro Fac Upp Upp Zhi Pro Fac Ext Cet Arc Hub Res Tes Res Qua Sec Acc Com Traps Triggered 21 | . 1 . 2 . . 4 2 . . . . . . . . . . . . . . . 2 . . 1 1 . 1 4 1 2 . Indirectly 1 | . . . . . . . . . . . . . . . . . . . . . . . . . . 1 . . . . . . . Trap Hack Attempts 78 | . . . 15 . . 40 . . . . . 23 . . . . . . . . . . . . . . . . . . . . . Triggered . | . . . . . . . . . . . . . . . . . . . . . . . . . . . . . . . . . . Disarmed . | . . . . . . . . . . . . . . . . . . . . . . . . . . . . . . . . . . Reprogrammed 12 | . . . 3 . . 6 . . . . . 3 . . . . . . . . . . . . . . . . . . . . . Reused 15 | . . . . . . 1 . . . . . 3 1 . . . . 3 5 . 2 . . . . . . . . . . . . Traps Extracted 12 | . . . 2 . . 4 . . . . . 3 . . . . . 2 1 . . . . . . . . . . . . . . Installed 28 | . . . . . . . . . . . . 4 1 . . . . 11 7 . 5 . . . . . . . . . . . . Triggered 21 | . . . . . . 1 . 1 . . . 3 4 . . 1 1 3 5 . 2 . . . . . . . . . . . . Most Traps Carried 12 | . . . 2 2 2 6 6 6 6 6 6 6 6 5 5 5 5 12 12 1 4 . . . . . . . . . . . . Machines | -11 -10 -10 -9 -9 -8 -8 -7 -7 -7 -7 -6 -6 -6 -6 -6 -5 -5 -5 -5 -5 -4 -4 -4 -4 -4 -4 -3 -3 -2 -2 -2 -1 -1 ---------- Run | Scr Mat Min Mat Min Mat Sto Fac Low Low Zio Pro Fac Low Low Dat Pro Fac Upp Upp Zhi Pro Fac Ext Cet Arc Hub Res Tes Res Qua Sec Acc Com Machines Disabled 85 | . . . 5 . 2 2 11 . . . . 10 . 1 . . 10 . . . . 1 2 2 1 18 2 4 3 5 5 1 . Max in Single Turn 8 | . . . 2 . 1 1 4 . . . . 1 . 1 . . 2 . . . . 1 1 1 . 8 1 1 1 1 1 1 . Garrison Access 10 | . . . . . 1 1 1 . . . . . . . . . 1 . . . . . . . . . . 1 1 1 . 3 . Network Hub 3 | . . . . . . . . . . . . . . . . . . . . . . . . . . 3 . . . . . . . Machines Sabotaged . | . . . . . . . . . . . . . . . . . . . . . . . . . . . . . . . . . . Overloaded Fab Kills . | . . . . . . . . . . . . . . . . . . . . . . . . . . . . . . . . . . Hacking | -11 -10 -10 -9 -9 -8 -8 -7 -7 -7 -7 -6 -6 -6 -6 -6 -5 -5 -5 -5 -5 -4 -4 -4 -4 -4 -4 -3 -3 -2 -2 -2 -1 -1 --------- Run | Scr Mat Min Mat Min Mat Sto Fac Low Low Zio Pro Fac Low Low Dat Pro Fac Upp Upp Zhi Pro Fac Ext Cet Arc Hub Res Tes Res Qua Sec Acc Com Machines Accessed 106 | . 6 1 14 1 9 13 17 1 . . . 1 2 1 3 1 6 1 . 4 . 1 . 1 . . 5 5 3 3 2 5 . Terminals 41 | . 4 . 10 . 4 8 10 . . . . . . 1 . 1 1 . . . . . . 1 . . . . . . . 1 . Fabricators 9 | . . . . . . . 3 . . . . 1 . . . . 1 . . . . . . . . . 1 1 2 . . . . Repair Stations 19 | . 1 . 1 . 2 2 1 . . . . . . . . . 3 . . . . 1 . . . . 1 2 . 2 2 1 . Recycling Units 7 | . 1 . 1 . . 2 1 . . . . . . . . . . . . . . . . . . . 2 . . . . . . Scanalyzers 6 | . . . 2 . 2 . 1 . . . . . . . . . . . . . . . . . . . . 1 . . . . . Garrison Access 11 | . . . . . 1 1 1 . . . . . . . . . 1 . . . . . . . . . 1 1 1 1 . 3 . Total Hacks 309 | . 16 1 55 1 22 31 45 1 . . . 4 2 1 23 1 16 1 . 16 . 2 . 3 . . 14 20 11 6 8 9 . Successful 164 | . 8 1 29 1 17 12 19 1 . . . 3 2 1 23 1 6 1 . 16 . 1 . . . . 5 7 6 1 1 2 . Failed 144 | . 7 . 26 . 5 19 26 . . . . 1 . . . . 10 . . . . 1 . 3 . . 9 13 5 5 7 7 . Catastrophic 25 | . . . 6 . . 2 5 . . . . . . . . . . . . . . . . 1 . . 2 1 2 . 1 5 . Database Lockouts 1 | . 1 . . . . . . . . . . . . . . . . . . . . . . . . . . . . . . . . Manual 191 | . 8 . 26 . 8 13 19 . . . . 9 . . . . 15 . . . . 3 4 1 . 6 20 24 10 6 8 11 . Terminals 105 | . 11 . 34 . 8 18 24 . . . . . . 1 . 1 2 . . . . . . 3 . . . . . . . 3 . Fabricators 35 | . . . . . . . 9 . . . . 4 . . . . 6 . . . . . . . . . 3 4 9 . . . . Repair Stations 57 | . 4 . 2 . 8 4 4 . . . . . . . . . 6 . . . . 2 . . . . 2 11 . 4 8 2 . Recycling Units 18 | . 1 . 3 . . 6 2 . . . . . . . . . . . . . . . . . . . 6 . . . . . . Scanalyzers 27 | . . . 16 . 5 . 4 . . . . . . . . . . . . . . . . . . . . 2 . . . . . Garrison Access 22 | . . . . . 1 3 2 . . . . . . . . . 2 . . . . . . . . . 3 3 2 2 . 4 . Terminal Hacks 69 | . 3 1 9 1 1 5 4 1 . . . . 2 1 23 1 . 1 . 16 . . . . . . . . . . . . . Record 13 | . . . . . . . . . . . . . . 1 6 1 . . . 5 . . . . . . . . . . . . . Part Schematic 14 | . . . . . . . 1 . . . . . . . 10 . . . . 3 . . . . . . . . . . . . . Robot Schematic 4 | . . . . . . . . . . . . . . . 4 . . . . . . . . . . . . . . . . . . Robot Analysis 11 | . 2 . 2 . 1 1 1 . . . . . . . . . . . . 4 . . . . . . . . . . . . . Prototype ID Bank 12 | . 1 . 3 . . . 1 . . . . . . . 3 . . . . 4 . . . . . . . . . . . . . Open Door 9 | . . 1 . 1 . 3 . 1 . . . . 2 . . . . 1 . . . . . . . . . . . . . . . Scanalyzer Index 1 | . . . 1 . . . . . . . . . . . . . . . . . . . . . . . . . . . . . . Unreport Threat 1 | . . . 1 . . . . . . . . . . . . . . . . . . . . . . . . . . . . . . Locate Traps 3 | . . . 1 . . 1 1 . . . . . . . . . . . . . . . . . . . . . . . . . . Zone Layout 1 | . . . 1 . . . . . . . . . . . . . . . . . . . . . . . . . . . . . . Fabricator Hacks 18 | . . . . . . . 5 . . . . 2 . . . . 3 . . . . . . . . . 1 2 5 . . . . Network Status 4 | . . . . . . . 1 . . . . 1 . . . . 1 . . . . . . . . . . . 1 . . . . Load Schematic 7 | . . . . . . . 2 . . . . . . . . . 1 . . . . . . . . . 1 1 2 . . . . Build 7 | . . . . . . . 2 . . . . 1 . . . . 1 . . . . . . . . . . 1 2 . . . . Repair Station Hacks 28 | . 4 . 2 . 6 3 2 . . . . . . . . . 3 . . . . 1 . . . . 2 4 . . 1 . . Scan Component 17 | . 2 . 1 . 3 2 2 . . . . . . . . . 2 . . . . 1 . . . . 1 2 . . 1 . . Repair 11 | . 2 . 1 . 3 1 . . . . . . . . . . 1 . . . . . . . . . 1 2 . . . . . Recycling Unit Hacks 4 | . . . 1 . . 1 1 . . . . . . . . . . . . . . . . . . . 1 . . . . . . Retrieve Components 4 | . . . 1 . . 1 1 . . . . . . . . . . . . . . . . . . . 1 . . . . . . Scanalyzer 21 | . . . 12 . 5 . 4 . . . . . . . . . . . . . . . . . . . . . . . . . . Insert Component 10 | . . . 6 . 2 . 2 . . . . . . . . . . . . . . . . . . . . . . . . . . Analyze 11 | . . . 6 . 3 . 2 . . . . . . . . . . . . . . . . . . . . . . . . . . Garrison Access Hacks 3 | . . . . . 1 . . . . . . . . . . . . . . . . . . . . . . . 1 . . 1 . Seal Access 3 | . . . . . 1 . . . . . . . . . . . . . . . . . . . . . . . 1 . . 1 . Unauthorized Hacks 21 | . 1 . 5 . 4 3 3 . . . . 1 . . . . . . . . . . . . . . 1 1 . 1 . 1 . Terminals 9 | . . . 3 . 4 1 1 . . . . . . . . . . . . . . . . . . . . . . . . . . Track 1 | . . . . . 1 . . . . . . . . . . . . . . . . . . . . . . . . . . . . Assimilate 1 | . . . . . 1 . . . . . . . . . . . . . . . . . . . . . . . . . . . . Botnet 7 | . . . 3 . 2 1 1 . . . . . . . . . . . . . . . . . . . . . . . . . . Fabricators 3 | . . . . . . . 2 . . . . 1 . . . . . . . . . . . . . . . . . . . . . Prioritize 1 | . . . . . . . 1 . . . . . . . . . . . . . . . . . . . . . . . . . . Liberate 2 | . . . . . . . 1 . . . . 1 . . . . . . . . . . . . . . . . . . . . . Repair Stations . | . . . . . . . . . . . . . . . . . . . . . . . . . . . . . . . . . . Recycling Units 4 | . 1 . 1 . . 1 . . . . . . . . . . . . . . . . . . . . 1 . . . . . . Mask 2 | . . . . . . 1 . . . . . . . . . . . . . . . . . . . . 1 . . . . . . Tunnel 2 | . 1 . 1 . . . . . . . . . . . . . . . . . . . . . . . . . . . . . . Scanalyzers 2 | . . . 1 . . . . . . . . . . . . . . . . . . . . . . . . 1 . . . . . Researchers 1 | . . . . . . . . . . . . . . . . . . . . . . . . . . . . 1 . . . . . Extract 1 | . . . 1 . . . . . . . . . . . . . . . . . . . . . . . . . . . . . . Garrison Access 3 | . . . . . . 1 . . . . . . . . . . . . . . . . . . . . . . . 1 . 1 . Jam 3 | . . . . . . 1 . . . . . . . . . . . . . . . . . . . . . . . 1 . 1 . Data Cores Recovered 1 | . . . . . . . 1 . . . . . . . . . . . . . . . . . . . . . . . . . . Used 1 | . . . . . . . 1 . . . . . . . . . . . . . . . . . . . . . . . . . . Hacking Detections 79 | . 4 . 14 . 6 11 17 . . . . 1 . . . . 6 . . . . 1 . 1 . . 4 5 2 2 2 3 . Full Trace Events 15 | . 1 . 3 . . 2 4 . . . . . . . . . 2 . . . . . . . . . . 1 2 . . . . Feedback Events . | . . . . . . . . . . . . . . . . . . . . . . . . . . . . . . . . . . Feedback Blocked . | . . . . . . . . . . . . . . . . . . . . . . . . . . . . . . . . . . Robot Schematics Acquired 10 | . . . . . . . . . . . . . . . 4 . . . . . . . . . . . . 4 . . 2 . . Robots Built 4 | . . . . . . . . . . . . 4 . . . . . . . . . . . . . . . . . . . . . Authchips . | . . . . . . . . . . . . . . . . . . . . . . . . . . . . . . . . . . Time 67 | . . . . . . . . . . . . 67 . . . . . . . . . . . . . . . . . . . . . Total Robot Build Rating 16 | . . . . . . . . . . . . 16 . . . . . . . . . . . . . . . . . . . . . Part Schematics Acquired 71 | . . . 5 . 1 . 3 . . . . . . . 10 . . . . 3 . . . . . . . 34 . . 15 . . Parts Built 7 | . . . . . . . 4 . . . . . . . . . 1 . . . . . . . . . . 1 1 . . . . Authchips 1 | . . . . . . . 1 . . . . . . . . . . . . . . . . . . . . . . . . . . Time 498 | . . . . . . . 84 . . . . . . . . . 169 . . . . . . . . . . 93 152 . . . . Total Part Build Rating 34 | . . . . . . . 16 . . . . . . . . . 6 . . . . . . . . . . 7 5 . . . . Parts Repaired 11 | . 2 . 1 . 3 1 . . . . . . . . . . 1 . . . . . . . . . 1 2 . . . . . Time 488 | . 52 . 32 . 194 51 . . . . . . . . . . 13 . . . . . . . . . 108 38 . . . . . Parts Recycled . | . . . . . . . . . . . . . . . . . . . . . . . . . . . . . . . . . . Recycled Matter . | . . . . . . . . . . . . . . . . . . . . . . . . . . . . . . . . . . Retrieved Matter . | . . . . . . . . . . . . . . . . . . . . . . . . . . . . . . . . . . Retrieved Components 29 | . . . 10 . . 10 3 . . . . . . . . . . . . . . . . . . . 6 . . . . . . Parts Scanalyzed 7 | . . . 4 . 1 . 2 . . . . . . . . . . . . . . . . . . . . . . . . . . Part Schematics Acquired 7 | . . . 4 . 1 . 2 . . . . . . . . . . . . . . . . . . . . . . . . . . Parts Damaged 1 | . . . 1 . . . . . . . . . . . . . . . . . . . . . . . . . . . . . . Bothacking | -11 -10 -10 -9 -9 -8 -8 -7 -7 -7 -7 -6 -6 -6 -6 -6 -5 -5 -5 -5 -5 -4 -4 -4 -4 -4 -4 -3 -3 -2 -2 -2 -1 -1 ------------ Run | Scr Mat Min Mat Min Mat Sto Fac Low Low Zio Pro Fac Low Low Dat Pro Fac Upp Upp Zhi Pro Fac Ext Cet Arc Hub Res Tes Res Qua Sec Acc Com Used RIF Installer . | . . . . . . . . . . . . . . . . . . . . . . . . . . . . . . . . . . Robots Hacked 9 | . . . . . . . . . . 1 . . . . 1 1 . . . 3 . . 2 . . . . . . . . 1 . Non-combat . | . . . . . . . . . . . . . . . . . . . . . . . . . . . . . . . . . . Combat 9 | . . . . . . . . . . 1 . . . . 1 1 . . . 3 . . 2 . . . . . . . . 1 . Robot Hacks Applied 9 | . . . . . . . . . . 1 . . . . 1 1 . . . 3 . . 2 . . . . . . . . 1 . parse_system 9 | . . . . . . . . . . 1 . . . . 1 1 . . . 3 . . 2 . . . . . . . . 1 . Relay Couplers Released 11 | . . . . . . . 6 . . . . . . . . . 2 . . . . . . . . . . 2 . . . 1 . Machine Destruction 7 | . . . . . . . 2 . . . . . . . . . 2 . . . . . . . . . . 2 . . . 1 . Programmers 4 | . . . . . . . 4 . . . . . . . . . . . . . . . . . . . . . . . . . . Fabnet Peak Effective % . | . . . . . . . . . . . . . . . . . . . . . . . . . . . . . . . . . . Robots Rewired 12 | . . . . . . . . . . . . . 1 3 . . . . . . . . 6 . . 1 . . . . . 1 . Allies Hacked 2 | . . . . . . . . . . . . . . . . . . . . . . . . . . . . . . . . 2 . Hacks Repelled . | . . . . . . . . . . . . . . . . . . . . . . . . . . . . . . . . . . Allies | -11 -10 -10 -9 -9 -8 -8 -7 -7 -7 -7 -6 -6 -6 -6 -6 -5 -5 -5 -5 -5 -4 -4 -4 -4 -4 -4 -3 -3 -2 -2 -2 -1 -1 -------- Run | Scr Mat Min Mat Min Mat Sto Fac Low Low Zio Pro Fac Low Low Dat Pro Fac Upp Upp Zhi Pro Fac Ext Cet Arc Hub Res Tes Res Qua Sec Acc Com Total Allies 76 | . . 1 . 2 1 2 2 . . 7 . 7 1 4 . 1 2 . . . . 1 27 . . 2 4 . 3 3 . 6 . Largest Group 22 | . . 1 1 2 1 2 2 . . 7 7 5 1 5 5 5 5 . . . . 1 22 22 5 1 2 . 3 2 . 2 . Highest-Rated Group 1157 | . . 31 31 45 26 62 64 . . 225 225 210 36 210 210 281 390 . . . . 27 1157 1157 323 49 59 . 345 230 . 244 . Highest-Rated Ally 159 | . . 31 31 31 26 31 32 . . 38 38 70 36 99 99 99 99 . . . . 27 159 159 136 49 32 . 115 115 . 140 . Zionite Dispatches 14 | . . . . . . . . . . . . 1 . . . . 1 . . . . 1 2 . . . 4 . 1 . . 4 . Heavy 2 | . . . . . . . . . . . . . . . . . 1 . . . . . . . . . . . . . . 1 . Light 2 | . . . . . . . . . . . . 1 . . . . . . . . . . . . . . . . 1 . . . . Hacker 1 | . . . . . . . . . . . . . . . . . . . . . . . 1 . . . . . . . . . . Hero 2 | . . . . . . . . . . . . . . . . . . . . . . . 1 . . . . . . . . 1 . Kinetic Resupply 1 | . . . . . . . . . . . . . . . . . . . . . . 1 . . . . . . . . . . . Melee Resupply 2 | . . . . . . . . . . . . . . . . . . . . . . . . . . . . . . . . 2 . Defense Resupply 1 | . . . . . . . . . . . . . . . . . . . . . . . . . . . 1 . . . . . . Heavy Resupply 1 | . . . . . . . . . . . . . . . . . . . . . . . . . . . 1 . . . . . . Infowar Resupply 2 | . . . . . . . . . . . . . . . . . . . . . . . . . . . 2 . . . . . . Total Orders 55 | . . . . . 5 13 . . . . . 1 . 4 . 1 5 . . . 3 2 . . . 1 10 2 4 1 1 2 . STAY 21 | . . . . . 4 9 . . . . . . . 2 . 1 1 . . . . 1 . . . . 3 . . . . . . FOLLOW 8 | . . . . . 1 4 . . . . . . . 2 . . 1 . . . . . . . . . . . . . . . . DROP 7 | . . . . . . . . . . . . . . . . . . . . . . 1 . . . . 4 . . . . 2 . EXPLORE 2 | . . . . . . . . . . . . . . . . . . . . . 2 . . . . . . . . . . . . RETURN 17 | . . . . . . . . . . . . 1 . . . . 3 . . . 1 . . . . 1 3 2 4 1 1 . . Ally Attacks 551 | . . 2 2 14 . 18 24 . . 5 32 39 . . . 26 88 . . . . . 88 115 12 22 . . 6 21 . 37 . Total Damage 19783 | . . 20 41 228 . 323 413 . . 167 715 665 . . . 1393 5179 . . . . . 2764 3361 367 474 . . 250 1130 . 2293 . Kills 126 | . . 1 1 3 . 1 6 . . 1 4 4 . . . 5 37 . . . . . 17 21 4 4 . . 1 4 . 12 . Allies Corrupted 4 | . . . . . . . . . . . . . . . . . . . . . . . . . . . 1 . . 1 . 2 . Allies Melted 8 | . . . . . . . . . . . . . . . . . . . . . . . 1 . . . . . . . . . 7 Intel | -11 -10 -10 -9 -9 -8 -8 -7 -7 -7 -7 -6 -6 -6 -6 -6 -5 -5 -5 -5 -5 -4 -4 -4 -4 -4 -4 -3 -3 -2 -2 -2 -1 -1 ------- Run | Scr Mat Min Mat Min Mat Sto Fac Low Low Zio Pro Fac Low Low Dat Pro Fac Upp Upp Zhi Pro Fac Ext Cet Arc Hub Res Tes Res Qua Sec Acc Com Robot Analysis Total 11 | . 2 . 2 . 1 1 1 . . . . . . . . . . . . 4 . . . . . . . . . . . . . Derelict Logs Recovered 20 | . . 2 . 2 . . . 1 2 2 2 . 2 2 . 1 . 2 . . 2 . . . . . . . . . . . . Drone Launches 33 | . . . . . . . . . . . . 1 . . . . 3 . . . 2 . 7 . . 6 4 2 4 1 1 2 . Drone Recoveries 21 | . . . . . . . . . . . . 1 . . . . 3 . . . 2 . . . . 1 4 2 4 1 1 2 . Decoded 0b10 Intel 46 | . . . . . . . . . . . . . . . . . . . . . . . . . . . 7 11 21 7 . . . Traps 11 | . . . . . . . . . . . . . . . . . . . . . . . . . . . 6 . 2 3 . . . Emergency Access 34 | . . . . . . . . . . . . . . . . . . . . . . . . . . . 1 10 19 4 . . . Exits 1 | . . . . . . . . . . . . . . . . . . . . . . . . . . . . 1 . . . . . Zionite Intel Received 17 | . . . . . . . . . . . . 1 . . . . 2 . . . . . . . . 1 1 7 2 1 2 . . Branch Access 2 | . . . . . . . . . . . . 1 . . . . . . . . . . . . . . 1 . . . . . . Guard Positions 1 | . . . . . . . . . . . . . . . . . . . . . . . . . . . . 1 . . . . . Prototype Stockpiles 1 | . . . . . . . . . . . . . . . . . . . . . . . . . . . . . 1 . . . . Component Schematics 1 | . . . . . . . . . . . . . . . . . . . . . . . . . . . . . . . 1 . . Prototype Schematics 3 | . . . . . . . . . . . . . . . . . . . . . . . . . . . . 3 . . . . . Unaware Schematics 1 | . . . . . . . . . . . . . . . . . . . . . . . . . . . . 1 . . . . . Unaware Analyses 4 | . . . . . . . . . . . . . . . . . 1 . . . . . . . . 1 . 1 . . 1 . . Trap Installations 2 | . . . . . . . . . . . . . . . . . . . . . . . . . . . . 1 1 . . . . Active Garrisons 2 | . . . . . . . . . . . . . . . . . 1 . . . . . . . . . . . . 1 . . . Exploration | -11 -10 -10 -9 -9 -8 -8 -7 -7 -7 -7 -6 -6 -6 -6 -6 -5 -5 -5 -5 -5 -4 -4 -4 -4 -4 -4 -3 -3 -2 -2 -2 -1 -1 ------------- Run | Scr Mat Min Mat Min Mat Sto Fac Low Low Zio Pro Fac Low Low Dat Pro Fac Upp Upp Zhi Pro Fac Ext Cet Arc Hub Res Tes Res Qua Sec Acc Com Turns Passed 61239 | 10 1415 1756 4240 1657 2490 3522 4731 1411 2532 1399 2063 1549 4629 3079 176 830 2494 2821 1392 385 2176 659 1255 296 1452 466 1833 1281 1478 1479 985 2033 1265 Spaces Moved 24677 | 5 532 530 1393 634 632 985 1995 931 1164 769 1109 564 2111 1383 87 417 965 1177 659 179 1180 278 598 147 100 154 696 603 561 592 286 855 406 Core 45 | . . . . . . . . . . . . . . . . . . . . . . . . . 45 . . . . . . . . Treads 10067 | 5 532 530 1393 634 632 985 1082 . . . . . . . . . . . . . . . . 115 55 154 696 603 561 592 265 837 396 Legs . | . . . . . . . . . . . . . . . . . . . . . . . . . . . . . . . . . . Wheels 14516 | . . . . . . . 913 931 1164 769 1109 564 2111 1383 87 417 965 1177 659 179 1180 278 598 32 . . . . . . . . . Hover . | . . . . . . . . . . . . . . . . . . . . . . . . . . . . . . . . . . Flight . | . . . . . . . . . . . . . . . . . . . . . . . . . . . . . . . . . . Fastest Speed 116 | 160 160 160 240 240 240 240 120 116 176 176 176 162 162 190 190 190 190 190 130 130 150 163 160 160 160 160 145 145 145 153 141 141 143 Average Speed 195 | 160 160 303 240 240 240 240 193 139 176 176 179 177 191 208 198 190 209 209 182 153 151 168 172 161 1438 160 161 145 148 168 226 157 158 Slowest Speed 3000 | 160 160 320 240 240 240 240 320 176 176 176 235 180 210 210 210 210 210 210 250 170 170 180 175 175 3000 163 225 145 153 233 233 221 160 Overloaded Moves . | . . . . . . . . . . . . . . . . . . . . . . . . . . . . . . . . . . Propulsion Burnouts . | . . . . . . . . . . . . . . . . . . . . . . . . . . . . . . . . . . Robots Hopped . | . . . . . . . . . . . . . . . . . . . . . . . . . . . . . . . . . . Cave-ins Triggered . | . . . . . . . . . . . . . . . . . . . . . . . . . . . . . . . . . . Teleports 2 | . . . . . . . . . . . . . . . . . . . . . . . . . . . . . . 2 . . . Spacefolds 15 | . . . . . . . . . . . . . . . . . . . . . . . . . . . . . . . 8 4 3 Microwarps 1 | . . . . . . . . . . . . . . . . . . . . . . . . . . . . . . . . 1 . Exploration Rate (%) 61 | 2 72 98 97 86 45 95 47 98 99 88 97 13 99 94 74 61 30 87 68 60 85 7 80 68 67 34 22 71 18 70 21 28 16 Regions Visited 33 Branch Regions 23 Pre-discovered Areas 12 | . 1 1 1 . . . . 1 . 2 1 . . . 1 . . 1 . 3 . . . . . . . . . . . . . Known Exits Taken 29 | . . . 1 1 1 . 1 1 1 1 1 1 1 1 1 1 1 1 1 1 1 1 1 1 1 1 1 1 1 1 1 1 . Unknown Exits Taken 4 | 1 1 1 . . . 1 . . . . . . . . . . . . . . . . . . . . . . . . . . . Scrap Searched 36 | . . 1 . 2 . . . 10 3 2 2 . 4 2 . 2 . 1 4 . 3 . . . . . . . . . . . . Spaces Dug 338 | . 1 . 37 17 . 3 32 5 43 . 12 14 2 5 . . 13 25 2 . 5 3 . . . 9 14 9 19 3 9 40 16 Terrain Destroyed 1795 | . 3 2 104 20 52 14 83 8 71 . 26 89 22 8 . . 110 53 70 . 27 7 5 . . 548 130 29 34 57 21 79 123 Melee 44 | . 1 . . . . 3 1 . . . . . 1 . . . 1 . . . . 1 . . . . . . . . 7 24 5 Projectile 272 | . 2 2 5 3 3 1 5 8 6 . 1 12 10 8 . . 29 29 11 . 9 5 3 . . 10 25 13 34 16 2 11 9 AOE 1476 | . . . 99 17 49 10 77 . 65 . 25 77 11 . . . 80 24 59 . 18 . . . . 538 105 16 . 41 12 44 109 Terrain Rammed . | . . . . . . . . . . . . . . . . . . . . . . . . . . . . . . . . . . Walls Destroyed . | . . . . . . . . . . . . . . . . . . . . . . . . . . . . . . . . . . Machines Disabled . | . . . . . . . . . . . . . . . . . . . . . . . . . . . . . . . . . . Actions | -11 -10 -10 -9 -9 -8 -8 -7 -7 -7 -7 -6 -6 -6 -6 -6 -5 -5 -5 -5 -5 -4 -4 -4 -4 -4 -4 -3 -3 -2 -2 -2 -1 -1 --------- Run | Scr Mat Min Mat Min Mat Sto Fac Low Low Zio Pro Fac Low Low Dat Pro Fac Upp Upp Zhi Pro Fac Ext Cet Arc Hub Res Tes Res Qua Sec Acc Com Total 34894 | 6 1001 676 2105 741 1438 1909 2646 1017 1600 815 1159 969 2626 1551 90 438 1303 1458 818 283 1512 390 735 200 106 316 1232 954 1065 925 580 1310 920 Wait 6584 | . 348 126 524 76 672 708 387 49 384 28 23 221 368 88 1 4 155 192 84 77 228 32 47 14 2 98 267 213 273 149 213 229 304 Move 24611 | 4 531 529 1392 633 631 984 1994 930 1163 768 1108 563 2110 1382 86 416 964 1176 658 178 1179 277 597 146 99 153 695 602 560 591 272 841 399 Hop . | . . . . . . . . . . . . . . . . . . . . . . . . . . . . . . . . . . Pick Up 315 | . 19 10 16 2 6 12 24 8 2 6 3 6 30 10 . 3 21 8 5 4 13 5 2 7 . 1 24 16 12 5 4 15 16 Fast Attach 178 | . 9 . 10 1 3 1 14 1 1 . 2 13 2 2 . . 7 8 4 4 5 3 5 5 . 2 17 10 9 9 7 9 15 Attach 175 | . . . 4 . 6 2 8 1 . . . 8 5 6 . . 11 2 3 1 2 2 . . . 2 28 11 14 13 14 9 23 Detach 130 | . 1 . 7 . 3 . 5 1 . . . 7 4 3 . . 4 2 2 1 2 1 . . . . 21 8 10 8 16 4 20 Swap 619 | 2 8 1 20 7 14 18 47 6 19 6 10 44 23 9 2 9 47 22 29 6 23 20 23 4 1 19 35 19 42 30 12 29 13 Drop 409 | . 19 6 17 5 10 14 29 2 2 6 4 13 36 11 . . 23 6 12 6 16 9 7 16 . 2 29 25 17 14 4 19 30 Fire 1427 | . 54 3 83 11 90 105 122 19 29 . 9 67 30 21 . 2 69 20 11 . 36 37 38 8 4 34 110 40 125 82 5 96 67 Melee 241 | . 2 . . . . 15 4 . . 1 . . 17 . 1 4 2 11 3 6 3 4 12 . . 2 4 4 1 23 33 56 33 Ram . | . . . . . . . . . . . . . . . . . . . . . . . . . . . . . . . . . . Kick . | . . . . . . . . . . . . . . . . . . . . . . . . . . . . . . . . . . Crush 70 | . 10 1 17 6 3 6 12 . . . . . . . . . . . . . . . . . . 3 2 6 1 1 . 2 . Escape Stasis 9 | . . . . . . 4 . . . . . . . . . . . . . . . . 4 . . . . . 1 . . . . Rewire 20 | . . . . . . . . . . . . . . 19 . . . . . . . . . . . . . . . . . 1 . Trap 106 | . . . 15 . . 40 . . . . . 27 1 . . . . 11 7 . 5 . . . . . . . . . . . . Miscellaneous . | . . . . . . . . . . . . . . . . . . . . . . . . . . . . . . . . . . Route ------- -11/Scrapyard -10/Materials (discovered 3 exits: *Mat / *Min x2) -10/Mines (discovered 3 exits: *Mat x2 / [*Exi]) -9/Materials (discovered 4 exits: *Mat x3 / *Min) -9/Mines (discovered 2 exits: *Mat x2) -8/Materials (discovered 3 exits: *Fac / *Sto x2) -8/Storage -7/Factory (discovered 2 exits: *Fac / *Low) -7/Lower Caves -7/Lower Caves (discovered 2 exits: *Fac / *Zio) -7/Zion -6/Proximity Caves -6/Factory (discovered 3 exits: Fac / *Low x2) -6/Lower Caves -6/Lower Caves (discovered 2 exits: *Fac / *Dat) -6/Data Miner -5/Proximity Caves -5/Factory (discovered 3 exits: *Fac x2 / *Upp) -5/Upper Caves -5/Upper Caves (discovered 2 exits: *Fac / *Zhi) -5/Zhirov -4/Proximity Caves -4/Factory -4/Extension (discovered 2 exits: *Res / *Cet) -4/Cetus (discovered 2 exits: *Res / *Arc) -4/Archives -4/Hub_04(d) (discovered 2 exits: *Res x2) -3/Research (discovered 5 exits: *Res x3 / *Tes x2) -3/Testing -2/Research (discovered 2 exits: *Acc / *Qua) -2/Quarantine (discovered 2 exits: Acc / *Sec) -2/Section 7 -1/Access (discovered 2 exits: Sur / *Com) -1/Command (discovered 2 exits: Sur x2) By MAIN.C's Side History --------- Turn | Location | Event 4 | -11/Scrapyard | Discovered new exit (range 3) 11 | -11/Scrapyard | Entered Materials 79 | -10/Materials | Discovered new exit (range 12) 306 | -10/Materials | Build established: Mutant 478 | -10/Materials | Discovered new exit (range 16) 978 | -10/Materials | Repaired Lgt. Treads 1005 | -10/Materials | Repaired Lgt. Treads 1142 | -10/Materials | Central database locked down 1158 | -10/Materials | Discovered new exit (range 9) 1426 | -10/Materials | Entered Mines 1429 | -10/Mines | Met a Derelict bent on vengeance 1458 | -10/Mines | Found a damaged Exp. Sensor Array with a note attached 1462 | -10/Mines | Found Prototype Device 1495 | -10/Mines | Discovered new exit (range 12) 1507 | -10/Mines | Met a Derelict who couldn't figure out how to use a Trap Extractor 1781 | -10/Mines | Learned location of Storage (-8) 1790 | -10/Mines | Discovered new exit (range 10) 1841 | -10/Mines | Deemed a non-threat by the Exiles lab entrance 1841 | -10/Mines | Discovered new exit (range 5) 2337 | -10/Mines | Learned location of 1 exit from Materials 2511 | -10/Mines | Met a Derelict testing a Signal Generator 3182 | -10/Mines | Entered Materials 3182 | -9/Materials | Accompanied by 1 ally 3182 | -9/Materials | Evolved 2 slots: Propulsion x1, Utility x1 3183 | -9/Materials | Identified exit to Mines 3184 | -9/Materials | Identified exit to Materials 3316 | -9/Materials | Destroyed 8 combat bots 3987 | -9/Materials | Discovered exit to Materials (range 8) 4024 | -9/Materials | Identified Exp. Sensor Array 5348 | -9/Materials | Repaired Imp. Treads 5995 | -9/Materials | Discovered exit to Materials (range 8) 7182 | -9/Materials | First assault squad dispatched 7422 | -9/Materials | Entered Mines 7670 | -9/Mines | Learned 2 Materials zone layouts 7991 | -9/Mines | Found the Drone Emporium 8329 | -9/Mines | Discovered exit to Materials (range 16) 8886 | -9/Mines | Found Prototype Device 9079 | -9/Mines | Entered Materials 9079 | -8/Materials | Evolved 2 slots: Propulsion x1, Utility x1 9080 | -8/Materials | Identified exit to Storage 9081 | -8/Materials | Identified Bomb Drone Bay 9260 | -8/Materials | Repaired Broken Exp. Sensor Array? 9379 | -8/Materials | Build established: Scavenger-Mutant 10681 | -8/Materials | Discovered new exit (range 14) 10809 | -8/Materials | Discovered exit to Storage (range 3) 11039 | -8/Materials | Repaired Lgt. Treads 11073 | -8/Materials | Repaired Med. Armor Plating 11569 | -8/Materials | Entered Storage 11569 | -8/Storage | Accompanied by 1 ally 12394 | -8/Storage | Found Prototype Protection 13266 | -8/Storage | Discovered new exit (range 14) 14694 | -8/Storage | Repaired Imp. Assault Rifle 14769 | -8/Storage | First assault squad dispatched 15063 | -8/Storage | Met a pair of Derelict thieves 15091 | -8/Storage | Entered Factory 15091 | -7/Factory | Accompanied by 1 ally 15091 | -7/Factory | Evolved 2 slots: Utility x2 15399 | -7/Factory | Build established: Scavenger-Skirmisher 16215 | -7/Factory | Build established: Scavenger-Mutant 16781 | -7/Factory | Discovered new exit (range 15) 16825 | -7/Factory | Identified exit to Lower Caves 17267 | -7/Factory | Identified Lgt. Regenerative Plating 17993 | -7/Factory | Assembled infested ambush trap array 18078 | -7/Factory | Lost 3 parts (2n1u) 18446 | -7/Factory | Fabricated Powered Armor (x2) 18588 | -7/Factory | Build established: Mutant 18618 | -7/Factory | Discovered new exit (range 8) 18669 | -7/Factory | Identified exit to Factory 18952 | -7/Factory | Fabricated Powered Armor (x2) 19822 | -7/Factory | Entered Lower Caves 20230 | -7/Lower Caves | Learned location of Extension (-4) 20883 | -7/Lower Caves | Discovered new exit (range 5) 21203 | -7/Lower Caves | Build established: Hauler-Mutant 21226 | -7/Lower Caves | Identified exit to Lower Caves 21233 | -7/Lower Caves | Entered another Lower Caves area 21413 | -7/Lower Caves | Learned Factory terminal intel 22094 | -7/Lower Caves | Learned location of 1 exit from Factory 22195 | -7/Lower Caves | Discovered exit to Factory (range 14) 23243 | -7/Lower Caves | Discovered new exit (range 11) 23763 | -7/Lower Caves | Identified exit to Zion 23765 | -7/Lower Caves | Entered Zion 23788 | -7/Zion | Given the Hacking Drone Bay 23789 | -7/Zion | Found Prototype Device 23790 | -7/Zion | Identified Hacking Drone Bay 23864 | -7/Zion | Found CR-A16's Pointy Stick 23877 | -7/Zion | Discovered new exit (range 11) 24596 | -7/Zion | Imprinted 24599 | -7/Zion | Declared Zion's savior 24739 | -7/Zion | Learned location of Data Miner (-6) 24753 | -7/Zion | Gained Derelict followers 24830 | -7/Zion | Learned Factory security intel 25158 | -7/Zion | Identified exit to Proximity Caves 25164 | -7/Zion | Entered Proximity Caves 25164 | -6/Proximity Caves | Accompanied by 7 allies 25991 | -6/Proximity Caves | Attracted the attention of an 0b10 checkpoint 26216 | -6/Proximity Caves | Learned Factory emergency access door positions 26946 | -6/Proximity Caves | Discovered exit to Factory (range 7) 27227 | -6/Proximity Caves | Entered Factory 27227 | -6/Factory | Accompanied by 1 ally 27227 | -6/Factory | Evolved 2 slots: Utility x2 27228 | -6/Factory | Identified exit to Factory 27231 | -6/Factory | Loaded intel: 26 terminal locations 27343 | -6/Factory | Fabricated S-27 Virus? 28295 | -6/Factory | Retrieved Zion intel report: Branch Access 28295 | -6/Factory | Identified exit to Lower Caves 28296 | -6/Factory | Zion Light squad teleported in 28396 | -6/Factory | Cargo convoy interrupted 28526 | -6/Factory | Terminal network hard line cut 28555 | -6/Factory | Found Prototype Launcher 28555 | -6/Factory | Identified Hellfire Missile Launcher 28558 | -6/Factory | Found Hellfire Missile Launcher 28563 | -6/Factory | Found Hellfire Missile Launcher 28599 | -6/Factory | Found Prototype Device 28599 | -6/Factory | Identified Adv. Kinecellerator 28610 | -6/Factory | Found Prototype Protection 28610 | -6/Factory | Identified Zio. Weapon Casing 28626 | -6/Factory | Found Prototype Device 28626 | -6/Factory | Identified Exp. Thermal Shield 28776 | -6/Factory | Entered Lower Caves 29460 | -6/Lower Caves | Learned Factory terminal intel 29546 | -6/Lower Caves | Learned Factory garrison access intel 30949 | -6/Lower Caves | Discovered new exit (range 5) 30954 | -6/Lower Caves | Identified exit to Lower Caves 31268 | -6/Lower Caves | Found Prototype Device 31268 | -6/Lower Caves | Identified Heart of Steel 33405 | -6/Lower Caves | Entered another Lower Caves area 33405 | -6/Lower Caves | Accompanied by 1 ally 33406 | -6/Lower Caves | Encountered a Warlord checkpoint 33603 | -6/Lower Caves | Discovered exit to Factory (range 14) 33925 | -6/Lower Caves | Learned Factory terminal intel 34768 | -6/Lower Caves | Learned 8 Factory zone layouts 35777 | -6/Lower Caves | Discovered new exit (range 5) 36130 | -6/Lower Caves | Attacked by a delusional Derelict stockpiling Unaware 36234 | -6/Lower Caves | Heart of Steel transformed into Warbot 36425 | -6/Lower Caves | Identified exit to Data Miner 36484 | -6/Lower Caves | Entered Data Miner 36484 | -6/Data Miner | Accompanied by 5 allies (Warbot) 36484 | -6/Data Miner | Discovered new exit (range 6) 36524 | -6/Data Miner | Met Data Miner 36587 | -6/Data Miner | Learned location of Section 7 (-2) 36587 | -6/Data Miner | Acquired the access code to Warlord's prototype stash 36611 | -6/Data Miner | Received God Mode back door access code from Data Miner 36657 | -6/Data Miner | Identified exit to Proximity Caves 36660 | -6/Data Miner | Entered Proximity Caves 36660 | -5/Proximity Caves | Accompanied by 5 allies (Warbot) 36783 | -5/Proximity Caves | Learned Factory garrison access intel 36892 | -5/Proximity Caves | Spotted B-75 Beast 36895 | -5/Proximity Caves | Escorted by Enhanced Grunt 36905 | -5/Proximity Caves | Allies destroyed B-75 Beast 37360 | -5/Proximity Caves | Discovered exit to Factory (range 4) 37490 | -5/Proximity Caves | Entered Factory 37490 | -5/Factory | Accompanied by 4 allies (Warbot) 37490 | -5/Factory | Evolved 2 slots: Power x1, Utility x1 37492 | -5/Factory | Loaded intel: 25 terminal locations 37493 | -5/Factory | Loaded intel: 4 garrison access locations 38098 | -5/Factory | Discovered new exit (range 15) 38134 | -5/Factory | Identified exit to Factory 38235 | -5/Factory | Repaired Huge Storage Unit 38406 | -5/Factory | Cargo convoy interrupted 38423 | -5/Factory | Zion Heavy squad teleported in 38692 | -5/Factory | Retrieved Zion intel report: Unaware Analyses 38731 | -5/Factory | Retrieved Zion intel report: Active Garrisons 38904 | -5/Factory | Terminal network hard line cut 38949 | -5/Factory | Discovered exit to Factory (range 13) 38991 | -5/Factory | Found Prototype Protection 39027 | -5/Factory | First assault squad dispatched 39046 | -5/Factory | Incoming assault squad redirected 39312 | -5/Factory | Incoming assault squad redirected 39385 | -5/Factory | Incoming investigation squad redirected 39390 | -5/Factory | Incoming assault squad redirected 39479 | -5/Factory | Incoming investigation squad redirected 39630 | -5/Factory | Fabricated Tri-rail Accelerator? 39753 | -5/Factory | Discovered new exit (range 8) 39855 | -5/Factory | Lost 11 parts (3p2n5u1w) 39865 | -5/Factory | High security lockdown imminent 39886 | -5/Factory | Destroyed 7 combat bots 39914 | -5/Factory | Identified Zio. Heavy Carapace 39921 | -5/Factory | Identified exit to Upper Caves 39945 | -5/Factory | High security lockdown engaged 39984 | -5/Factory | Entered Upper Caves 40936 | -5/Upper Caves | Spotted B-75 Beast 41452 | -5/Upper Caves | Discovered new exit (range 15) 41675 | -5/Upper Caves | Learned Factory stockpile data 41859 | -5/Upper Caves | Build established: Trapper-Mutant 42197 | -5/Upper Caves | Identified exit to Upper Caves 42294 | -5/Upper Caves | Found Alien Artifact 42294 | -5/Upper Caves | Identified Core Expander 42294 | -5/Upper Caves | Installed Core Expander, added new Propulsion slot 42805 | -5/Upper Caves | Entered another Upper Caves area 42877 | -5/Upper Caves | Discovered exit to Factory (range 12) 43559 | -5/Upper Caves | Ambushed by wild Derelicts 43835 | -5/Upper Caves | Spotted B-75 Beast 44026 | -5/Upper Caves | Destroyed B-75 Beast 44080 | -5/Upper Caves | Build established: Scavenger-Mutant 44187 | -5/Upper Caves | Discovered new exit (range 8) 44196 | -5/Upper Caves | Identified exit to Zhirov 44197 | -5/Upper Caves | Entered Zhirov 44197 | -5/Zhirov | Discovered new exit (range 3) 44224 | -5/Zhirov | Met Zhirov 44283 | -5/Zhirov | Learned location of Quarantine (-2) 44283 | -5/Zhirov | Learned location of Testing (-3) 44283 | -5/Zhirov | Learned location of Command (-1) 44293 | -5/Zhirov | Zhirov requested help retrieving the SGEMP Prototype 44319 | -5/Zhirov | Found Alien Artifact 44319 | -5/Zhirov | Identified Integrated Reactor 44319 | -5/Zhirov | Installed Integrated Reactor, increased core energy generation (+10) 44337 | -5/Zhirov | Revealed the true nature of CR-A16's Pointy Stick 44513 | -5/Zhirov | Found Alien Artifact 44580 | -5/Zhirov | Identified exit to Proximity Caves 44582 | -5/Zhirov | Entered Proximity Caves 44905 | -4/Proximity Caves | Learned Research terminal intel 44935 | -4/Proximity Caves | Learned location of 1 exit from Research 45034 | -4/Proximity Caves | Build established: Derelict-Mutant 45735 | -4/Proximity Caves | Discovered exit to Factory (range 10) 46368 | -4/Proximity Caves | Found Imp. Powered Armor 46758 | -4/Proximity Caves | Entered Factory 46758 | -4/Factory | Evolved 2 slots: Utility x2 46760 | -4/Factory | Loaded intel: 28 terminal locations 46761 | -4/Factory | Loaded intel: 4 garrison access locations 46780 | -4/Factory | Build established: Mutant 47021 | -4/Factory | Zion Kinetic Resupply teleported in 47224 | -4/Factory | Found Exp. Terrain Scan Processor 47401 | -4/Factory | Discovered new exit (range 11) 47415 | -4/Factory | Identified exit to Extension 47417 | -4/Factory | Entered Extension 47620 | -4/Extension | Rescued a captive Derelict 47729 | -4/Extension | Rescued a captive Derelict 47730 | -4/Extension | Rescued a captive Derelict 47763 | -4/Extension | Zion hero teleported in (AD-0RF) 47806 | -4/Extension | Rescued a captive Derelict 47807 | -4/Extension | Rescued a captive Derelict 47860 | -4/Extension | Zion Hacker squad teleported in 47875 | -4/Extension | Rescued a captive Derelict 47896 | -4/Extension | Rescued a captive Derelict 47912 | -4/Extension | Build established: Scavenger-Mutant 48054 | -4/Extension | Rescued A7 48304 | -4/Extension | Spotted B-86 Titan 48324 | -4/Extension | Spotted B-86 Titan 48327 | -4/Extension | Allies destroyed B-86 Titan 48386 | -4/Extension | Rescued a captive Derelict 48398 | -4/Extension | Rescued a captive Derelict 48416 | -4/Extension | Rescued a captive Derelict 48417 | -4/Extension | Rescued a captive Derelict 48434 | -4/Extension | Rescued a captive Derelict 48434 | -4/Extension | Rescued a captive Derelict 48527 | -4/Extension | Rescued a captive Derelict 48544 | -4/Extension | Rescued a captive Derelict 48559 | -4/Extension | Rescued a captive Derelict 48565 | -4/Extension | Rescued a captive Derelict 48631 | -4/Extension | Discovered new exit (range 10) 48633 | -4/Extension | Discovered new exit (range 6) 48644 | -4/Extension | Identified exit to Research 48662 | -4/Extension | Identified exit to Cetus 48672 | -4/Extension | Entered Cetus 48672 | -4/Cetus | Accompanied by 22 allies (incl. AD-0RF, A7) 48677 | -4/Cetus | Acquired a Cetus Manufacturing Module code from A7 48687 | -4/Cetus | Spotted Cetus Guard 48687 | -4/Cetus | Spotted Cetus Guard 48688 | -4/Cetus | Spotted Cetus Guard 48688 | -4/Cetus | Spotted Cetus Guard 48691 | -4/Cetus | Allies destroyed Cetus Guard 48699 | -4/Cetus | Allies destroyed Cetus Guard 48704 | -4/Cetus | Allies destroyed Cetus Guard 48705 | -4/Cetus | Allies destroyed Cetus Guard 48706 | -4/Cetus | Found AD-0RF's Magmablaster 48711 | -4/Cetus | Found Exp. Thermal Shield 48791 | -4/Cetus | Started Cetus Manufacturing Module 48794 | -4/Cetus | Cetus Manufacturing Module disabled 48813 | -4/Cetus | Escorted A7 to Cetus Mainframe 48831 | -4/Cetus | Discovered new exit (range 15) 48859 | -4/Cetus | Spotted Cetus Guard 48864 | -4/Cetus | Destroyed Cetus Guard 48869 | -4/Cetus | Spotted Cetus Guard 48869 | -4/Cetus | Spotted Cetus Guard 48869 | -4/Cetus | Spotted Cetus Guard 48872 | -4/Cetus | Allies destroyed Cetus Guard 48876 | -4/Cetus | Allies destroyed Cetus Guard 48878 | -4/Cetus | Allies destroyed Cetus Guard 48885 | -4/Cetus | Discovered exit to Research (range 15) 48894 | -4/Cetus | Scared off Revision 17 48959 | -4/Cetus | Identified exit to Archives 48968 | -4/Cetus | Entered Archives 48968 | -4/Archives | Accompanied by 5 allies (A7) 48973 | -4/Archives | Received a hacking code to weaken MAIN.C 49029 | -4/Archives | Discovered new exit (range 16) 50418 | -4/Archives | Identified exit to Hub_04(d) 50420 | -4/Archives | Entered Hub_04(d) 50420 | -4/Hub_04(d) | Accompanied by 1 ally 50474 | -4/Hub_04(d) | Discovered exit to Research (range 21) 50660 | -4/Hub_04(d) | Retrieved Zion intel report: Unaware Analyses 50710 | -4/Hub_04(d) | Network Hub disabled 50712 | -4/Hub_04(d) | Spotted Lightning 50738 | -4/Hub_04(d) | Spotted Lightning 50739 | -4/Hub_04(d) | Network Hub disabled 50739 | -4/Hub_04(d) | Spotted Lightning 50748 | -4/Hub_04(d) | Spotted Lightning 50750 | -4/Hub_04(d) | Spotted Lightning 50763 | -4/Hub_04(d) | System corruption reached 10% 50770 | -4/Hub_04(d) | Spotted Lightning 50788 | -4/Hub_04(d) | Lost 3 parts (3u) 50789 | -4/Hub_04(d) | Destroyed Lightning 50795 | -4/Hub_04(d) | Destroyed Lightning 50797 | -4/Hub_04(d) | Destroyed Lightning 50797 | -4/Hub_04(d) | Destroyed Lightning 50817 | -4/Hub_04(d) | Destroyed Lightning 50821 | -4/Hub_04(d) | Destroyed Lightning 50842 | -4/Hub_04(d) | Destroyed 8 combat bots 50872 | -4/Hub_04(d) | Discovered exit to Research (range 4) 50884 | -4/Hub_04(d) | Network Hub disabled 50885 | -4/Hub_04(d) | System corruption reached 30% 50886 | -4/Hub_04(d) | Entered Research 50886 | -3/Research | Evolved 2 slots: Propulsion x1, Utility x1 50887 | -3/Research | Identified exit to Research 50888 | -3/Research | Loaded intel: 24 terminal locations 50927 | -3/Research | Garrison activated, responded to threat 50994 | -3/Research | Discovered exit to Research (range 22) 51066 | -3/Research | Zion Infowar Resupply teleported in 51136 | -3/Research | First assault squad dispatched 51436 | -3/Research | Incoming assault squad redirected 51643 | -3/Research | Lost 4 parts (1n3u) 51661 | -3/Research | Incoming assault squad redirected 51759 | -3/Research | Zion Heavy Resupply teleported in 52027 | -3/Research | Retrieved Zion intel report: Branch Access 52027 | -3/Research | Identified exit to Testing 52028 | -3/Research | Zion Infowar Resupply teleported in 52114 | -3/Research | Zion Defense Resupply teleported in 52121 | -3/Research | Found Hvy. Reactive Plating 52124 | -3/Research | Found Prototype Device 52127 | -3/Research | Identified Exp. Shield Generator 52129 | -3/Research | Found Prototype Device 52176 | -3/Research | Identified Adv. EM Disruption Field 52232 | -3/Research | Spotted B-86 Titan 52249 | -3/Research | Destroyed B-86 Titan 52290 | -3/Research | Discovered exit to Research (range 18) 52327 | -3/Research | Terminal network hard line cut 52388 | -3/Research | Repaired Exp. Sensor Array 52692 | -3/Research | Incoming assault squad redirected 52719 | -3/Research | Entered Testing 52791 | -3/Testing | Retrieved Zion intel report: Trap Installations 52872 | -3/Testing | Retrieved Zion intel report: Prototype Schematics 52906 | -3/Testing | Build established: Mutant 52920 | -3/Testing | Found Prototype Processor 52947 | -3/Testing | Identified Spectral Analyzer 52998 | -3/Testing | Retrieved Zion intel report: Unaware Schematics 53021 | -3/Testing | Retrieved Zion intel report: Prototype Schematics 53050 | -3/Testing | Spotted Superbehemoth 53204 | -3/Testing | Found Prototype Energy Cannon 53204 | -3/Testing | Identified Imp. Potential Cannon 53223 | -3/Testing | Retrieved Zion intel report: Unaware Analyses 53331 | -3/Testing | Repaired Hvy. Reactive Plating 53474 | -3/Testing | Repaired Hrd. Heavy Armor Plating 53502 | -3/Testing | Retrieved Zion intel report: Guard Positions 53663 | -3/Testing | Retrieved Zion intel report: Prototype Schematics 53856 | -3/Testing | Incoming investigation squad redirected 53877 | -3/Testing | Found Prototype Device 53877 | -3/Testing | Identified AEGIS Remote Shield 53929 | -3/Testing | Fabricated Exp. Signal Interpreter (x1) 53986 | -3/Testing | Found Exp. Thermal Shield 54000 | -3/Testing | Entered Research 54000 | -2/Research | Evolved 2 slots: Power x1, Utility x1 54027 | -2/Research | Build established: Skirmisher 54112 | -2/Research | Found Prototype Launcher 54179 | -2/Research | Retrieved Zion intel report: Trap Installations 54191 | -2/Research | Identified Point Singularity Launcher 54347 | -2/Research | Destroyed 7 combat bots 54449 | -2/Research | Fabricated Exp. Targeting Computer (x1) 54500 | -2/Research | Found Adv. Powered Armor 54502 | -2/Research | Found Adv. Powered Armor 54516 | -2/Research | Found Adv. Powered Armor 54799 | -2/Research | Found Prototype Hackware 54827 | -2/Research | Identified Exp. System Shield 54828 | -2/Research | Spotted B-90 Cyclops 54883 | -2/Research | Discovered new exit (range 24) 54936 | -2/Research | Identified exit to Access 55251 | -2/Research | Found Prototype Launcher 55256 | -2/Research | Identified Ragnarok Missile Launcher 55360 | -2/Research | Discovered new exit (range 23) 55400 | -2/Research | Retrieved Zion intel report: Prototype Stockpiles 55401 | -2/Research | Zion Light squad teleported in 55447 | -2/Research | Spotted B-90 Cyclops 55450 | -2/Research | Destroyed B-90 Cyclops 55472 | -2/Research | Identified exit to Quarantine 55478 | -2/Research | Entered Quarantine 55478 | -2/Quarantine | Accompanied by 2 allies 55667 | -2/Quarantine | Found Alien Slashing Weapon 55701 | -2/Quarantine | Incoming investigation squad redirected 55728 | -2/Quarantine | First assault squad dispatched 55755 | -2/Quarantine | Incoming assault squad redirected 55758 | -2/Quarantine | Incoming assault squad redirected 55778 | -2/Quarantine | Cryocooling Duct disabled 55793 | -2/Quarantine | Ambient heat levels rising (+20) 55793 | -2/Quarantine | Non-combat units ordered to evacuate 55890 | -2/Quarantine | Found Alien Artifact 55890 | -2/Quarantine | Identified Phase Armor 55971 | -2/Quarantine | Allied Derelicts emerged from ambush trap array 56001 | -2/Quarantine | Incoming assault squad redirected 56016 | -2/Quarantine | Found Alien Artifact 56123 | -2/Quarantine | Retrieved Zion intel report: Active Garrisons 56181 | -2/Quarantine | Destroyed 7 combat bots 56287 | -2/Quarantine | Found Alien Artifact 56291 | -2/Quarantine | Identified Sigix Broadsword 56296 | -2/Quarantine | Found Alien Artifact 56300 | -2/Quarantine | Incoming investigation squad redirected 56506 | -2/Quarantine | Incoming assault squad redirected 56534 | -2/Quarantine | Incoming assault squad redirected 56673 | -2/Quarantine | Discovered exit to Access (range 19) 56744 | -2/Quarantine | Identified Transdimensional Reconstructor (x2) 56744 | -2/Quarantine | Warped through subspace 56861 | -2/Quarantine | Spotted Fortress 56864 | -2/Quarantine | Warped through subspace 56902 | -2/Quarantine | Discovered new exit (range 23) 56919 | -2/Quarantine | Terminal network hard line cut 56953 | -2/Quarantine | Identified exit to Section 7 56957 | -2/Quarantine | Entered Section 7 56965 | -2/Section 7 | Scanned by Researcher 56982 | -2/Section 7 | Incoming investigation squad redirected 57026 | -2/Section 7 | Retrieved Zion intel report: Unaware Analyses 57035 | -2/Section 7 | Spotted B-90 Cyclops 57041 | -2/Section 7 | Destroyed B-90 Cyclops 57171 | -2/Section 7 | Found Alien Artifact 57171 | -2/Section 7 | Identified Integrity Redistributor 57171 | -2/Section 7 | Used Integrity Redistributor, redistributed integrity from core (-313) 57172 | -2/Section 7 | Core integrity fell below 50% 57345 | -2/Section 7 | Retrieved Zion intel report: Component Schematics 57420 | -2/Section 7 | Found Alien Artifact 57420 | -2/Section 7 | Identified Spacefold Activator 57584 | -2/Section 7 | Discovered exit to Access (range 22) 57660 | -2/Section 7 | Spotted S7 Guard 57665 | -2/Section 7 | Found Alien Artifact 57665 | -2/Section 7 | Identified Core Regenerator 57665 | -2/Section 7 | Used Core Regenerator, restored core integrity (+362) 57673 | -2/Section 7 | Destroyed S7 Guard 57678 | -2/Section 7 | Found Prototype Protection 57702 | -2/Section 7 | Found Alien Artifact 57702 | -2/Section 7 | Identified Microwarp Drive 57735 | -2/Section 7 | First assault squad dispatched 57750 | -2/Section 7 | Incoming assault squad redirected 57942 | -2/Section 7 | Entered Access 57942 | -1/Access | Evolved 2 slots: Utility x1, Weapon x1 57943 | -1/Access | Identified Hvy. Regenerative Plating 58192 | -1/Access | First assault squad dispatched 58211 | -1/Access | Incoming assault squad redirected 58251 | -1/Access | Incoming assault squad redirected 58319 | -1/Access | Destroyed 8 combat bots 58433 | -1/Access | Incoming investigation squad redirected 58457 | -1/Access | Incoming assault squad redirected 58492 | -1/Access | Zion hero teleported in (1C-UTU) 58623 | -1/Access | Discovered new exit (range 24) 58657 | -1/Access | Build established: Scavenger-Assassin 58705 | -1/Access | Found 1C-UTU's Buckler 58768 | -1/Access | Zion Melee Resupply teleported in 58775 | -1/Access | Found Prototype Slashing Weapon 58781 | -1/Access | Identified Molecular Scythe 58792 | -1/Access | P-80 Master assimilated allied E0-TSU(A) 58998 | -1/Access | Found Femtoactuators 59001 | -1/Access | Found Exp. Melee Analysis Suite 59153 | -1/Access | Zion Melee Resupply teleported in 59237 | -1/Access | Zion Heavy squad teleported in 59287 | -1/Access | Terminal network hard line cut 59317 | -1/Access | Intercept squad dispatched 59326 | -1/Access | Spotted Tracker 59326 | -1/Access | Spotted Tracker 59329 | -1/Access | Allies destroyed Tracker 59329 | -1/Access | Destroyed Tracker 59350 | -1/Access | Spotted Combat Programmer 59352 | -1/Access | Spotted Combat Programmer 59381 | -1/Access | Destroyed Combat Programmer 59400 | -1/Access | Destroyed Combat Programmer 59468 | -1/Access | Incoming assault squad redirected 59537 | -1/Access | Garrison activated, responded to threat 59604 | -1/Access | Destroyed 9 combat bots 59701 | -1/Access | Build established: Scavenger-Gladiator 59964 | -1/Access | Incoming assault squad redirected 59966 | -1/Access | Incoming assault squad redirected 59967 | -1/Access | Discovered new exit (range 9) 59974 | -1/Access | Identified exit to Command 59975 | -1/Access | Entered Command 60202 | -1/Command | Spotted Combat Programmer 60225 | -1/Command | First assault squad dispatched 60242 | -1/Command | Incoming assault squad redirected 60271 | -1/Command | Met MAIN.C 60281 | -1/Command | 0b10 Conduit disabled 60298 | -1/Command | Destroyed MAIN.C Shell 60300 | -1/Command | Surrendered to MAIN.C 60300 | -1/Command | Loaded intel: 52 machine locations 60300 | -1/Command | Loaded intel: 103 trap records 60300 | -1/Command | Identified exit to Surface 60300 | -1/Command | Discovered exit to Surface (range 100) 60300 | -1/Command | Discovered exit to Surface (range 45) 60305 | -1/Command | Found Prototype Protection 60305 | -1/Command | Identified Centrium Heavy Armor Plating 60377 | -1/Command | Found Prototype Reactor 60377 | -1/Command | Identified Zero-point Reactor 60381 | -1/Command | Found Zero-point Reactor 60388 | -1/Command | Found Prototype Device 60388 | -1/Command | Identified Exp. Cloaking Device 60392 | -1/Command | Found Prototype Device 60392 | -1/Command | Identified Exp. System Purifier 60395 | -1/Command | Found Exp. Focal Shield 60410 | -1/Command | Identified Subatomic Replicator 60410 | -1/Command | Used Subatomic Replicator to replicate Sigix Broadsword 60423 | -1/Command | Found AEGIS Remote Shield 60427 | -1/Command | Found Exp. Focal Shield 60709 | -1/Command | MAIN.C activated Command garrisons 60747 | -1/Command | Unknown forces attacked Command 60747 | -1/Command | Spotted EQ-006 60747 | -1/Command | Spotted EQ-002 60747 | -1/Command | Spotted EQ-001 60747 | -1/Command | Spotted EQ-003 60747 | -1/Command | Spotted EQ-005 60747 | -1/Command | Spotted EQ-004 60747 | -1/Command | Spotted EQ-000 60771 | -1/Command | Core integrity fell below 50% 60825 | -1/Command | Spotted EQ-015 60835 | -1/Command | Spotted EQ-035 60835 | -1/Command | Spotted EQ-018 60835 | -1/Command | Spotted EQ-020 60835 | -1/Command | Spotted EQ-022 60843 | -1/Command | Spotted EQ-021 60846 | -1/Command | Spotted EQ-019 60849 | -1/Command | Spotted EQ-036 60851 | -1/Command | Spotted EQ-023 60882 | -1/Command | Spotted EQ-017 60891 | -1/Command | Destroyed EQ-036 60893 | -1/Command | Spotted EQ-027 60900 | -1/Command | Destroyed EQ-027 60912 | -1/Command | Spotted EQ-032 60921 | -1/Command | Destroyed EQ-032 60954 | -1/Command | Spotted EQ-041 60954 | -1/Command | Spotted EQ-042 60954 | -1/Command | Spotted EQ-039 60954 | -1/Command | Spotted EQ-040 60992 | -1/Command | Spotted EQ-056 60995 | -1/Command | Spotted EQ-007 61003 | -1/Command | Destroyed EQ-056 61004 | -1/Command | Spotted EQ-059 61027 | -1/Command | Spotted EQ-050 61056 | -1/Command | Spotted EQ-060 61056 | -1/Command | Spotted EQ-062 61056 | -1/Command | Spotted EQ-061 61065 | -1/Command | Destroyed EQ-061 61096 | -1/Command | Spotted EQ-048 61099 | -1/Command | Spotted EQ-083 61100 | -1/Command | Spotted EQ-063 61106 | -1/Command | Spotted EQ-066 61106 | -1/Command | Spotted EQ-058 61106 | -1/Command | Spotted EQ-075 61114 | -1/Command | Destroyed EQ-048 61142 | -1/Command | Spotted EQ-078 61149 | -1/Command | System corruption reached 10% 61153 | -1/Command | Spotted EQ-072 61154 | -1/Command | Core integrity fell below 20% 61154 | -1/Command | Spotted EQ-051 61161 | -1/Command | Spotted EQ-070 61169 | -1/Command | Spotted EQ-103 61169 | -1/Command | Spotted EQ-084 61169 | -1/Command | Spotted EQ-093 61176 | -1/Command | Spotted EQ-065 61180 | -1/Command | Spotted EQ-069 61180 | -1/Command | Spotted EQ-096 61182 | -1/Command | Destroyed EQ-084 61186 | -1/Command | Spotted EQ-085 61204 | -1/Command | Spotted EQ-091 61207 | -1/Command | Lost 8 parts (2n4u2w) 61211 | -1/Command | Destroyed EQ-069 61235 | -1/Command | Spotted EQ-088 61237 | -1/Command | Spotted EQ-105 61240 | -1/Command | Attackers retreated from Command 61240 | *** | Fortifying 0b10! Last Messages --------------- 61228_ Slug penetrates Striker. 61228_ B-74 Champion suffers critical hit (Destroy). 61228_ Striker suffers critical hit (Destroy). 61228_ Slug penetrates Earth. 61228_ Slug penetrates EQ-091. 61230_ EQ-091 destroyed. 61230_ Acquired 1 matter. 61235_ Executioner destroyed. 61237_ Slug penetrates EQ-088. 61237_ EQ-088 destroyed. 61238_ Slug penetrates EQ-105. 61239_ EQ-105 destroyed. 61240_ ALERT: Enemy forces retreating. MAIN.C: I admit your assistance was pivotal here. It looks like I was right to trust you. This attack appears to have been designed to merely test our defenses, although it was nearly effective enough to force me to take the conflict to the next level. Investigating the origins of these bots should be one of our highest priorities... Map ----- +----------------------------------------------------+ | # # """" #???????????????????????????? | | # # """" #???????????????????????????? | | # + """" !#???????????????????????????? | | # # """" #???????????????????????????? | | ! # # #??#######??????????????????? | | ###### # #??# #??????????????????? | | # #### " #??????????????????? | | + + #??????????????????? | | #######################" #??????????????????? | | #??????????????# = #??????????????????? | | #???????????#### ] #??????????????????? | | #?????????### %% [ #??????????????????? | | #????????## !=![ #?################## | | ###?????## %= %#?#????????????????? | | * + #?????# ;; ;; !% ###?################ | | ! # #??????# ; % # #?# " % | | # #???????# ; b ; #?# !!!% | | # #???????# ; ; #?# " %%*% | | ####+### #????????#; % #?# " "" !%! | | ???# #?# #?????????# #?#" " " [ | | #### ### #???######## #?# !!="""""" % % | | "" #???# # = % #?#"[%*""" " % | | R"" #???# ; !% %#?# !*! """ = [ % | | "" #???# #M !% * #?# " *]!=% | | ^ #???# ; p E !!!%#?# " !![ !%!=%* | | ####???# # gg@ h[E!!#?#" "[%!!!=%%!!% | | #??????# l ; [! ![=%%!#?# !| %!!%=]%= | | #??????####/## % 7%! !]=#?# [%[*!=%[*[% | | #######???# ## = g !%=#%#?# %=*%=%=== %= | | ^ #?# # # b %Y%=!!###[%%%! [!% = | | ^ % ==%[ ==!=%[ %*=% | | """ # ===[%=%!%*=%!!=*=% | | """ "## %=[!=!%!*%]=[% | | """ % =!!*=# *%!*#!#%! %= " | | "" [!% [= !!=%% #%#% = " | | ![ =%=K ![!%## # " | | %[%=* = # ################ | | !! [ % % # ###??????????????? | | ] #################### | | #?????????????????? | | ######## ! % ?????????????????? | | ???????## *=[ ! ##?????????????????? | | ######## % !%= #########??????????? | | # !! #??????????? | | T#??????????? | | ######### ! ## ## ##### ##??????????? | | #?# # #?#"#######?#### =##??????????? | | #?# #* #?##????????#]][]!= #??????????? | | #?# ########???????????#]/]/] =#??????????? | | #?# ###????????????????# ! ** =#??????????? | +----------------------------------------------------+ Best States ------------- Heat Dissipation 142 Coolant Potential 220 Energy Generation 91 Energy Capacity 1230 Matter Stores 300 Matter Capacity 300 Sight Range 22 Robot Scan Range 20 Terrain Scan Range 24 Terrain Scan Density 1010 Jamming Range 14 Cloak Strength 4 EM Shielding 4 Armor Coverage 2800 Resistance: KI 40 Resistance: TH 30 Core Shielding 40 Propulsion Shielding 90 Melee Speed Boost 50 Evasion (%) 40 Targeting Accuracy 20 Melee Accuracy 20 Target Analysis 12 Core Analysis 6 Recoil Reduction 9 Kinecelleration 50 Force Boost 30 Offensive Hacking 11 Defensive Hacking 10 Authchip Count 1 Trap Extractor Capacity 6 Item Schematics ----------------- Exp. Sensor Array | -9/Materials | Scanalyzed Beamcaster | -9/Materials | Scanalyzed Imp. Signal Interpreter | -9/Materials | Scanalyzed Imp. Treads | -9/Materials | Scanalyzed Imp. Light Cannon | -9/Materials | Extracted Lrn. Tractor Beam | -8/Materials | Scanalyzed Powered Armor | -7/Factory | Hacked System Restoration Module | -7/Factory | Scanalyzed Cld. Ion Engine | -7/Factory | Scanalyzed Combat Drone Bay | -6/Data Miner | Free Lgt. Regenerative Plating | -6/Data Miner | Free Enh. Flexi-carbon Leg | -6/Data Miner | Free Exp. Heat Sink | -6/Data Miner | Free Tri-rail Accelerator | -6/Data Miner | Free Centrium Wheel | -6/Data Miner | Free Adv. Reaction Control System | -6/Data Miner | Free Adv. Datajack | -6/Data Miner | Free Imp. Kinecellerator | -6/Data Miner | Free Phase Gun | -6/Data Miner | Free Assault Drone Bay | -5/Zhirov | Free Exp. Optical Array | -5/Zhirov | Free Imp. Arc Thrower | -5/Zhirov | Free Lgt. Antimatter Cannon | -3/Testing | Z-intel System Purifier | -3/Testing | Z-intel Adv. Plasma Rifle | -3/Testing | Z-intel Thunder Hammer | -3/Testing | Z-intel Com. Tesla Bomb Launcher | -3/Testing | Z-intel Hvy. Antimatter Reactor | -3/Testing | Z-intel Enh. Biometal Leg | -3/Testing | Z-intel Hvy. Wave Gun | -3/Testing | Z-intel Hvy. Dispersion Rifle | -3/Testing | Z-intel Shock Maul | -3/Testing | Z-intel Imp. Matter Neutralizer | -3/Testing | Z-intel Cld. Plasma Rifle | -3/Testing | Z-intel Exp. Signal Interpreter | -3/Testing | Z-intel Adv. Myomer Leg | -3/Testing | Z-intel Cld. Field Propulsion Drive | -3/Testing | Z-intel Imp. Energy Well | -3/Testing | Z-intel Imp. Diametric Drive | -3/Testing | Z-intel Exp. Hacking Suite | -3/Testing | Z-intel Imp. Lightning Gun | -3/Testing | Z-intel Exp. Focal Shield | -3/Testing | Z-intel Hvy. Tesla Rifle | -3/Testing | Z-intel Exp. Target Analyzer | -3/Testing | Z-intel Exp. Targeting Computer | -3/Testing | Z-intel Diametric Drive | -3/Testing | Z-intel Proton Burst Cannon | -3/Testing | Z-intel Exp. Coolant Injector | -3/Testing | Z-intel Cld. Phase Cannon | -3/Testing | Z-intel Imp. KE Penetrator | -3/Testing | Z-intel Coolant Network | -3/Testing | Z-intel Tesla Bomb Launcher | -3/Testing | Z-intel Tiamat Missile Launcher | -3/Testing | Z-intel Enh. Coil Gun | -3/Testing | Z-intel Hvy. Gatling Laser | -3/Testing | Z-intel Cld. Proton Cannon | -3/Testing | Z-intel Exp. Weapon Cycler | -2/Section 7 | Archive Adv. Micro-nuke Launcher | -2/Section 7 | Archive Lrg. Storage Unit | -2/Section 7 | Z-intel Cmb. Linear Gravjet | -2/Section 7 | Z-intel Imp. Cloaking Device | -2/Section 7 | Z-intel Imp. Arc Projector | -2/Section 7 | Z-intel Imp. Targeting Computer | -2/Section 7 | Z-intel Core Analyzer | -2/Section 7 | Z-intel Lgt. Quantum Reactor | -2/Section 7 | Z-intel Imp. Hacking Suite | -2/Section 7 | Z-intel Adv. Field Recycling Unit | -2/Section 7 | Z-intel Imp. System Restoration Module | -2/Section 7 | Z-intel Graphene Brace | -2/Section 7 | Z-intel Lyr. Light Armor Plating | -2/Section 7 | Z-intel Nova Cannon | -2/Section 7 | Z-intel Robot Schematics ------------------ G-50 Soldier | -6/Data Miner | Free Y-64 Sentinel | -6/Data Miner | Free B-48 Gladiator | -6/Data Miner | Free B-60 Warrior | -6/Data Miner | Free H-77 Assassin | -3/Testing | Z-intel M-36 Artificer | -3/Testing | Z-intel M-30 Cleanser | -3/Testing | Z-intel A-02 Transporter | -3/Testing | Z-intel L-61 Swordsman | -2/Section 7 | Archive T-07 Excavator | -2/Section 7 | Archive Fabricated ------------ Powered Armor | x2 | -7/Factory | Authchip Powered Armor | x2 | -7/Factory S-27 Virus | x4 | -6/Factory | Preloaded Tri-rail Accelerator | x1 | -5/Factory Exp. Signal Interpreter | x1 | -3/Testing Exp. Targeting Computer | x1 | -2/Research Alien Tech Used ----------------- Core Expander Integrated Reactor Phase Armor Sigix Broadsword Transdimensional Reconstructor Integrity Redistributor Spacefold Activator Core Regenerator Microwarp Drive Subatomic Replicator Achievements -------------- None Challenges ------------ None Game ------ Seed PowerSpreadDetector Manual? 0 Play Time 06:15:25 Cumulative 1227.5 hours Start 2022.10.10 @ 22:34:15 End 2022.10.11 @ 05:23:32 Sessions 9 Manual Loads 0 Difficulty Rogue Special Mode None Game No. 842 Rogue 838 Adventurer 4 Explorer 0 Win Type 8 Total 133 Types 101/9/8/5/2/0/1/4/3 Lore% 94 Gallery% 98 Achievement% 98 Wizard Run 0 Options --------- ASCII 0 Keyboard 1 Movement Vi Keybinds 0 Fullscreen 0 Font 20/X11 Map View 76x50 Tactical HUD 1 Map Filters NONE Filters NONE Steam 1 RUN: 44f54fee-c85b-4147-ab71-211688d03365